{"text_format":"2","workbook":"xlsx","n_sheets":5,"sheets":["Resumen","Lote 1","Lote 2","Láminas 1","Láminas 2"],"not_rendered":{"charts":0,"images":0,"macros":0,"external_links":0,"defined_names":2,"comments":0,"pivot_tables":0},"unopened":[],"bounds":{"document_bytes":16777216,"sheet_cells":100000,"run_cost":"one","rows_first":2000,"rows_last":500,"rows_between":2000,"halvings":0,"cell_chars":16384,"cell_head_chars":4096},"cells_cut":0,"cells_raw":0,"read":"whole","date_system":"1900"}

{"sheet":"Resumen","index":0,"n_rows":20,"n_cols":5,"rows_kept":20,"cut":false,"hidden":false,"merged":[[1,1,1,4],[2,1,2,4],[3,1,3,4],[5,1,5,4],[6,2,6,3]]}
[]
[null,"CORTE SUPREMA DE JUSTICIA - PROGRAMA DE LAS NACIONES UNIDAS PARA EL DESARROLLO"]
[null,"\"PROGRAMA DE INFRAESTRUCTURA EDILICIA CSJ - PNUD\""]
[null,"SDP/14311/079/2025 - PROVISION Y MONTAJE DEL EQUIPAMIENTO MOBILIARIO INTERIOR Y EXTERIOR PARA LOS JUZGADOS DE 1° INSTANCIA DE FERNANDO DE LA MORA Y EL PALACIO DE JUSTICIA DE FILADELFIA."]
[]
[null,"RESUMEN DEL PRESUPUESTO"]
[null,"Lote","Descripción",null,"Precio Total"]
[null,"Nº",null,null,"Gs. Iva Incluido"]
[]
[null,1,"JUZGADOS DE 1° INSTANCIA DE FERNANDO DE LA MORA"]
[null,"1.1","Equipamiento mobiliario interior y exterior",null,{"$f":"+'Lote 1'!G138","v":0}]
[null,2,"PALACIO DE JUSTICIA DE FILADELFIA"]
[null,"2.1","Equipamiento mobiliario interior y exterior",null,{"$f":"+'Lote 2'!G131","v":0}]
[null,null,"Total General",null,{"$f":"+E11+E13","v":0}]
[null,null,"Son Guaranies . . . . . . . "]
[]
[]
[null,"OBS.","Prestar especial antención a las especificaciones y detalles de cada item porque pueden variar "]
[null,null,"de acuerdo al lote aun teniendo el mismo código."]
[null,null,"Las Planillas en formato editable deberan ser descargadas del siguiente link. "]

{"sheet":"Lote 1","index":1,"n_rows":138,"n_cols":7,"rows_kept":138,"cut":false,"hidden":false,"merged":[]}
[]
[null,{"$f":"+Resumen!B2","v":"CORTE SUPREMA DE JUSTICIA - PROGRAMA DE LAS NACIONES UNIDAS PARA EL DESARROLLO"}]
[null,{"$f":"+Resumen!B3","v":"\"PROGRAMA DE INFRAESTRUCTURA EDILICIA CSJ - PNUD\""}]
[null,{"$f":"+Resumen!B4","v":"SDP/14311/079/2025 - PROVISION Y MONTAJE DEL EQUIPAMIENTO MOBILIARIO INTERIOR Y EXTERIOR PARA LOS JUZGADOS DE 1° INSTANCIA DE FERNANDO DE LA MORA Y EL PALACIO DE JUSTICIA DE FILADELFIA."}]
[null,"LOTE 1 - JUZGADOS DE 1° INSTANCIA DE FERNANDO DE LA MORA"]
[]
[null,"Ítem","Descripción","Código","Cantidad","Precio Unit. Gs.","Precio Total GS."]
[]
[null,null,"MOBILIARIO INTERIOR Y EXTERIOR"]
[null,1,"SILLAS Y SILLONES"]
[null,"1.1","Banco de madera para baños de funcionarios\nBanco de tablones de  madera de petereby de 2m x 2\". Patas de petereby de 3x3\" y refuerzos inferiores y superiores de petereby de 1x2\"\nMedidas: 1,50x0,50","B",4,null,{"$f":"+E11*F11","v":0}]
[null,"1.2","Puff\nEstructura de madera maciza resistente atornillada y pegada. Laterales y superior tiras de goma a alta resistencia tornildas, revestido con espuma de alta densidad de 5cm. de espesor, tapizados en simil cuero, color a definir con muestras. Regatones regulables con base de goma sujeto a estructura de madera. Medidas: 0,50x0,50x0,50","PU",2,null,0]
[null,"1.3","Sillón de un cuerpo\nEstructura de madera maciza resistente atornillada y pegada, con tiras de goma de alta resistencia tornilladas a la madera conformado la forma basica, revestida con espuma de poliuretano. Tapizado en cuero natural de color negro. Almohadones en espuma de poliuretano revestidos en cuero natural. Cuatro patas de madera maciza de 15x15cm. Y 7cm. De altura. Terminación de la madera Lustrada con protección de Laca poliuretanica aplicada con soplete. Ver detalle en plano.","SD1",8,null,0]
[null,"1.4","Silla de guardería\nEstructura metalica tubular cilindrica o cuadrangular con cantos redondeados de 1\" de diametro aproximado, estructura soldada entre si. Terminacion pintura electroestatica colo gris. Asiento y respaldo de PVC inyectado. Colores Varios. Terminacion de patas con asientos de poliamida negra.","SG",54,null,0]
[null,"1.5","Silla para cafetería y restaurant\nEstructura metalica tubular cilindrica de 1\" de diametro aproximado. Terminacion pintura electroestatica colo gris. Asiento y respaldo en un solo cuerpo de PVC inyectado de alta dureza. Colores a definir. Terminacion de patas con asientos de poliamida negra.","SL",70,null,0]
[null,"1.6","Sillón interlocutor, categoría 1\nTipo: Asiento y respaldo media altura y amplio, en espuma de poliuretano inyectado; soporte de respaldo en acero moldeado revestido en espuma de poliuretano integral. Terminación en símil cuero negro con costuras. Estructura de cuatro patas en acero o una continua tipo trineo, terminación cromada. Las patas traseras terminan con ruedas dobles en poliamida (caso de 4 patas) y las delanteras con apoyos de poliamida. Apoya brazos en espuma de poliuretano integral y texturizado, con estructura interna en tubo de acero oval cromado de 50mm. a continuación de las patas. ","SI1",72,null,0]
[null,"1.7","Sillón interlocutor, categoría 2\nTipo:  Asiento y respaldo de estructura metálica oblonga terminada con pintura epoxi aplicada electroestáticamente, asiento en espuma de poliuretano inyectado tapizado en símil cuero color negro, respaldo con estructura de polipropileno y malla de nylon resistente color negro, apoyabrazos integrados del mismo material, estructura metálica patas med. aprox 1cm.x4cm. y zapatas de poliamida Sistema apilable entre si.","SI2",925,null,0]
[null,"1.8","Silla interlocutor, categoría 3 \nTipo:  Asiento y respaldo de estructura metálica oblonga terminación cromada de alta resistencia, asiento en espuma de poliuretano inyectado tapizado en símil cuero color negro, respaldo con estructura de polipropileno y malla de nylon resistente color negro, apoyabrazos integrados del mismo material.; estructura metálica cromada de las cuatro patas med. aprox 1cm.x4cm. y zapatas de poliamida. Usado en  Sala de juicios orales. Sistema apilable entre si.","SI3",160,null,0]
[null,"1.9","Silla interlocutor, categoría 4\nTipo:  Asiento y respaldo de estructura metálica oblonga terminación cromada de alta resistencia, asiento en espuma de poliuretano inyectado tapizado en símil cuero color negro, respaldo con estructura de polipropileno y malla de nylon resistente color negro, apoyabrazos integrados del mismo material.; mesa del lado derecho de PVC inyectado estructurado con el apoyabrazo, estructura metálica cromada de las cuatro patas med. aprox 1cm.x4cm. y zapatas de poliamida. Usado en  Salón de usos múltiples. Sistema apilable entre si.","SI4",108,null,0]
[null,"1.10","Sillón de Trabajo categoría 1 - Jueces\nTipo: Asiento y respaldo alto y amplio, en espuma de poliuretano inyectado; soporte de respaldo en acero moldeado revestido en espuma de poliuretano integral. Terminación en símil cuero negro con costuras. Estructura giratoria de cinco patas, base de Aluminio fundido terminación plata brillante o metálica cromada. Regulación de Altura con pistón a Aire comprimido y mecanismo de reclinación. Cada pata termina con ruedas dobles en poliamida. Estructura metalica cromada o de aluminio fundido anodizado brillante con apoya brazos en espuma de poliuretano integral y texturizado, sujeta a la parte inferior del asiento.","ST1",48,null,0]
[null,"1.11","Sillón de Trabajo categoría 2 - Administrador\nTipo: Asiento y respaldo medio y amplio, en espuma de poliuretano inyectado; soporte de respaldo en acero moldeado revestido en espuma de poliuretano integral. Terminación en símil cuero negro con costuras. Estructura giratoria de cinco patas metálicas en estrella, base de Aluminio fundido terminación plata brillante o metálica cromada. Regulación de Altura con pistón a Aire comprimido y mecanismo de reclinación. Cada pata termina con ruedas dobles en poliamida. Estructura metalica cromada o de aluminio fundido anodizado brillante con apoya brazos en espuma de poliuretano integral y texturizado, sujeta a la parte inferior del asiento.","ST2",5,null,0]
[null,"1.12","Sillón de Trabajo categoría 3- Secretarios de juzgados\nTipo: Asiento y Respaldo normal. Estructura partida en 2 de polipropileno, asiento de poliuretano inyectado. Respaldo de malla de rylon resistente con movimiento de reclinación, soporte en tubo de acero revestido en espuma de poliuretano integral con regulación de 4 alturas. Estructura giratoria de cinco patas metálicas en estrella, base acero terminación con pintura epoxica negra mate o revestida en PVC. Regulación de Altura con pistón a Aire comprimido. Apoya brazos estructura interna de acero revestida en espuma de Poliuretano sujeta a la estructura inferior del asiento. Terminación tapizado símil cuero color negro.","ST3",76,null,0]
[null,"1.13","Sillón de Trabajo categoría 4- Funcionarios\nTipo:  Asiento y Respaldo normal. Estructura partida en 2 de polipropileno, asiento de poliuretano inyectado. Respaldo de malla de nylon resistente con movimiento de reclinación, soporte en tubo de acero revestido en espuma de poliuretano integral con regulación de 4 alturas. Estructura giratoria de cinco patas metálicas en estrella, base acero terminación con pintura epoxica negra mate o revestida en PVC. Regulación de Altura con pistón a Aire comprimido. Terminación tapizado símil cuero color negro.","ST4",347,null,0]
[null,"1.14","Silla alta de Cajera, categoría 5\nTipo: Silla alta; asiento y respaldo ídem ST4; giratoria; Estructura partida en 2 de polipropileno, asiento de poliuretano inyectado. Respaldo de malla de nylon resistente con movimiento de reclinación, soporte en tubo de acero revestido en espuma de poliuretano integral con regulación de 4 alturas. Estructura giratoria de cinco patas metálicas en estrella, base acero terminación con pintura epoxica negra mate o revestida en PVC y zaparas de apoyo. Regulación de Altura con pistón a Aire comprimido. Terminación tapizado símil cuero color negro. Aro posapies cromado de altura regulable.","ST5",106,null,0]
[null,"1.15","Tanden de 3 asientos\nTipo:  Estructura de base y apoya brazos en metal cromado espesor minimo de 2mm. Espladar y asiento elaborado en perimetro con tubos de acero cromadros y metal micro perforado. Asientos y respaldo de en espuma inyectada de poliuretano Integral color negro. Dos apoyos, la distancia aproximada entre ejes de asientos es de 60cm. Respaldo y asiento de aproximadamente 50cm. de ancho.","T",108,null,0]
[null,"1.16","Taburete alto\nTipo: Patas de caños metálicos circulares cromados de 1\" de diámetro, terminacion regatones de poliamida. asiento de Espuma de poliuretano inyectado con estructura de resina de pliester y fibra de vidrio, terminacion simil cuero negro, respaldo de PVC inyectado color negro con perforaciones. Altura 73cm. Detalle ver plano.","TAB",2,null,0]
[null,2,"ESCRITORIOS Y MESAS"]
[null,"2.1","Escritorio con mesa de Apoyo fija. Categoría 1\nTipo: Estructura en tableros de placa melamínica de baja presión (BP) de 18mm; cantoneras de 20x45mm molduradas de PVC rígido color negro; plano de trabajo y placa frontal imitación trébol; planos laterales en placa melaminica de 25mm. color negro mate; reguladores metálicos de altura con bases de goma. Mesa de apoyo conectada por la tapa cubre piernas y Tapa de mesa; módulo de tres cajones en placas melamínicas BP imitación trébol de 15mm, tiradores en C de aluminio, guías metálicas telescopicas con bolillas de acero, cerradura de bloqueo central. Sujeción entre placas con tornillos armadores y tuercas cilíndricas embutidas en las placas.\nMedidas: 2,00x0,70m + 1,00x0,60; alto 0,78m. Detalle ver plano.\n","E1",36,null,{"$f":"+E28*F28","v":0}]
[null,"2.2","Escritorio simple. Categoría 3\nTipo: Estructura con pedestales metálicos de tubos de acero de sección 50x30mm y 1,2mm de espesor y chapa N° 18 plegada, pintura epoxi en polvo aplicado electroestáticamente, tapas molduradas de PVC en los extremos de los tubos. Plano de trabajo y tapa cubre piernas en placa melamínica de baja presión (BP) de 18mm color a definir; cantoneras de 20x45mm molduradas de PVC rígido color negro; un módulo de tres cajones en placas melamínicas BP de 15mm color a definir, tiradores en C de aluminio, guías metálicas telescopicas con bolillas de acero, cerradura de bloqueo central; reguladores metálicos de altura con bases de goma. Sujeción entre placas con tornillos armadores y tuercas cilíndricas embutidas en las placas.\nMedidas: 1,50x0,70m; alto 0,78m. Detalle Ver plano.","E3",107,null,0]
[null,"2.3","Escritorio simple sin cajonera. Categoría 4\nTipo: Estructura con pedestales metálicos de tubos de acero de sección 50x30mm y 1,2mm de espesor y chapa N° 18 plegada, pintura epoxi en polvo aplicado electroestáticamente, tapas molduradas de PVC en los extremos de los tubos. Plano de trabajo y tapa cubre piernas en placa melamínica de baja presión (BP) de 18mm color a definir; cantoneras de 20x45mm molduradas de PVC rígido color negro; reguladores metálicos de altura con bases de goma. Sujeción entre placas con tornillos armadores y tuercas cilíndricas embutidas en las placas.\nMedidas: 1,50x0,70m; alto 0,78m. Detalle Ver plano.","E4",56,null,0]
[null,"2.4","Escritorio con mesa de Apoyo. Categoría 5\nTipo: Estructura en tableros de placa melamínica de baja presión (BP) de 18mm color a definir; cantoneras de 20x45mm molduradas de PVC rígido color negro; plano de trabajo y placa frontal ; planos laterales en placa melaminica de 25mm. color negro mate; reguladores metálicos de altura con bases de goma. Mesa de apoyo conectada por la tapa cubre piernas y Tapa de mesa; módulo de tres cajones en placas melamínicas BP de 15mm, tiradores en C de aluminio, guías metálicas telescopicas con bolillas de acero, cerradura de bloqueo central. Sujeción entre placas con tornillos armadores y tuercas cilíndricas embutidas en las placas.\nMedidas: 1,70x0,70m + 1,00x0,60; alto 0,78m. Detalle ver plano.","E5",2,null,0]
[null,"2.5","Escritorio simple - Categoría 8\nTipo: Estructura con pedestales metálicos de tubos de acero de sección 50x30mm y 1,2mm de espesor y chapa N° 18 plegada, pintura epoxi en polvo aplicado electroestáticamente, tapas molduradas de PVC en los extremos de los tubos. Plano de trabajo y tapa cubre piernas en placa melamínica de baja presión (BP) de 18mm color a definir; cantoneras de 20x45mm molduradas de PVC rígido color negro; un módulo de tres cajones en placas melamínicas BP de 15mm color a definir, tiradores en C de aluminio, guías metálicas telescopicas con bolillas de acero, cerradura de bloqueo central; reguladores metálicos de altura con bases de goma. Sujeción entre placas con tornillos armadores y tuercas cilíndricas embutidas en las placas.\nMedidas: 1,30x0,70m; alto 0,78m. Detalle Ver plano.","E8",274,null,0]
[null,"2.6","Escritorio simple - Categoría 8 con color para Guardería\nTipo: Estructura con pedestales metálicos de tubos de acero de sección 50x30mm y 1,2mm de espesor y chapa N° 18 plegada, pintura epoxi en polvo aplicado electroestáticamente, tapas molduradas de PVC en los extremos de los tubos. Plano de trabajo y tapa cubre piernas en placa melamínica de baja presión (BP) de 18mm color a definir; cantoneras de 20x45mm molduradas de PVC rígido color negro; un módulo de tres cajones en placas melamínicas BP de 15mm color a definir, tiradores en C de aluminio, guías metálicas telescopicas con bolillas de acero, cerradura de bloqueo central; reguladores metálicos de altura con bases de goma. Sujeción entre placas con tornillos armadores y tuercas cilíndricas embutidas en las placas.\nMedidas: 1,30x0,70m; alto 0,78m. Detalle Ver plano.","E8G",3,null,0]
[null,"2.7","Mesa cuadrangular para Restaurante\nTapa supuerior rectangular de PVC inyectado de alta duracion con esquineros reforzados para montaje de patas metalicas. 4 patas de tubos de acero inoxidable o aluminio de alta dureza con refuerzo interior de 5 cm. De diametro terminacion con regatones de poliamida con rotula niveladora.\nMedidas: 0,72x0,72m. y 0,75m de altura. Ver detalles planos. Medidas aproximadas.","M1",20,null,0]
[null,"2.8","Mesa de apoyo simple\nTipo: Estructura con pedestales metálicos de tubos de acero de sección 50x30mm y 1,2mm de espesor y chapa N° 18 plegada, pintura epoxi en polvo aplicado electroestáticamente, tapas molduradas de PVC en los extremos de los tubos. Plano de trabajo y tapa cubre piernas en placa melamínica de baja presión (BP) de 18mm color a definir; cantoneras de 20x45mm molduradas de PVC rígido color negro; reguladores metálicos de altura con bases de goma. \nMedidas: 1,00x0,55m y 0,78m de altura","MA1",77,null,0]
[null,"2.9","Mesa de apoyo simple\nTipo: Estructura con pedestales metálicos de tubos de acero de sección 50x30mm y 1,2mm de espesor y chapa N° 18 plegada, pintura epoxi en polvo aplicado electroestáticamente, tapas molduradas de PVC en los extremos de los tubos. Plano de trabajo y tapa cubre piernas en placa melamínica de baja presión (BP) de 18mm color a definir; cantoneras de 20x45mm molduradas de PVC rígido color negro; reguladores metálicos de altura con bases de goma. \nMedidas: 1,00x0,55m y 0,78m de altura. Con bandeja para UPS\n","MA2",2,null,0]
[null,"2.10","Mesa de apoyo alta fija para pasillos publicos\nMesa alta de melamina color negro de 18mm con tapacanto termofusionado de pvc de 3mm.  Mesada sobreeevada con sujeción de planchuelas metálicas. Regatones de pvc regulables ocultos en las patas. Sujetada a los perfiles de las mamparas. Ver detalle\nMedidas:1,25x0,40x1,10","MAA",28,null,0]
[null,"2.11","Mesa de apoyo imitación trebol\nTipo: Estructura con pedestales metálicos de tubos de acero de sección 50x30mm y 1,2mm de espesor y chapa N° 18 plegada, pintura epoxi en polvo aplicado electroestáticamente, tapas molduradas de PVC en los extremos de los tubos. Plano de trabajo y tapa cubre piernas en placa melamínica de baja presión (BP) de 18mm color a definir e imitación Trébol en despachos de Jueces y sala de Juicios Orales; cantoneras de 20x45mm molduradas de PVC rígido color negro;reguladores metálicos de altura con bases de goma. \nMedidas: 1,20x0,60m; alto 0,78m.","MART",32,null,0]
[null,"2.12","Mesa circular de reuniones.\nTipo: Estructura de un par de pedestales metálicos de doble tubo dispuestos a 45º; tubos de acero de 50x30mm de 1,2mm de espesor, pintura epoxi aplicada electroestáticamente color negro mate; tapa superior en tablero de placa melamínica BP de 18mm color a definir; tapas molduradas de PVC negro en los extremos de los tubos; cantoneras de 20x45mm molduradas de PVC rígido color negro; reguladores metálicos de altura con base de goma.\nDiametro: ø 1,20m","MC 1,20",3,null,0]
[null,"2.13","Mesa circular de reuniones.\nTipo: Estructura de un par de pedestales metálicos de doble tubo dispuestos a 45º; tubos de acero de 50x30mm de 1,2mm de espesor, pintura epoxi aplicada electroestáticamente color negro mate; tapa superior en tablero de placa melamínica BP de 18mm color a definir; tapas molduradas de PVC negro en los extremos de los tubos; cantoneras de 20x45mm molduradas de PVC rígido color negro; reguladores metálicos de altura con base de goma.\nDiametro: ø 1,00m","MC 1,00",5,null,0]
[null,"2.14","Mesa de escenario de melamina\nMódulo de mesa para disertantes de placa de melamina oscura de 18mm. Estructura de tubos metálicos escondida. Zócalo de melamina revestido con chapa de aluminio pañeado de 2mm. Regatones de pvc escondidosde un lado y rueditas de poliester con freno del lado opuesto. Ubicación SUM. Ver detalle\nMedidas: 1,60x0,80m; alto 0,80m.","ME2",2,null,0]
[null,"2.15","Mesa baja de apoyo\nTipo: Estructura metálica tubular, pintura epoxi aplicada electroestaticamente color negro mate; plano superior cristal templado de 10mm; reguladores metálicos de altura con bases de goma.\nMedidas: 0,60x0,60m; alto 0,40m. ","MES",3,null,0]
[null,"2.16","Mesa Hexagonal para guarderia\nTapa superior de placa melaminica MDF de 18mm de espesor con tapa cantos termofusionados. Patas metalicas tubulares continuas de 1\" de diametro con terminacion de pintura epoxica o pintura electroestatica. Terminacio de tubos con zapatas de poliamida. Union entre tapa y tubo accesorios metalicos con tornillos frezados. Separacion en 2 modulos para organizacion continua.\nMedidas: 1,00 m. Distancia mas larga x0,87 m. Distancia mas corta. Por lado 0,50 m. y 0,50m de altura. Ver detalles planos.\n","MGH",9,null,0]
[null,"2.17","Mesa de sala de juicios orales\nEstructura de madera maciza con refuerzos de angulos metalicos, tapa superior de granito natural color negro, perimetro de 4 cm. De espesor, laterales, frente e interior de placa carpintera de 2cm. de espesor madera paraiso, reguladores metalicos de altura con bases de goma fijados a las estructura de madera, zocalos de madera revestido con aluminio anodizado color natural.Medidas: 1,70x0,90m; alto 0,75m. Detalle Ver planos.","ML1",8,null,0]
[null,"2.18","Mesa de defensa y acusadores - Sala de Juicios Orales\nEstructura de madera maciza con refuerzos de angulos metalicos, tapa superior de granito natural color negro, perimetro de 4 cm. De espesor, laterales, frente e interior de placa carpintera de 2cm. de espesor madera paraiso, reguladores metalicos de altura con bases de goma fijados a las estructura de madera, zocalos de madera revestido con aluminio anodizado color natural.\nMedidas:  2,10x0,90m; alto 0,75m.  Detalle Ver planos.\n","ML2",8,null,0]
[null,"2.19","Mesa Principal juicio oral\nEstructura de madera maciza con refuerzos de angulos metalicos, zocalo de madera maciza de 2x4\" revestida con lamina de paraiso, tapa superior de granito natural color negro, perimetro de 4 cm. De espesor, laterales, frente e interior de placa carpintera de 2cm. de espesor madera paraiso, reguladores metalicos de altura con bases de goma fijados a las estructura de madera.\nMedidas:  2,50x0,90m; alto 0,85m.  Detalle Ver plano.","MP2",4,null,0]
[null,"2.20","Mesa de trabajo\nTipo: Estructura de un par de pedestales  metálicos de doble tubo dispuestos a 45º; tubos de acero de 50x30mm de 1,2mm de espesor, pintura epoxi aplicada electroestáticamente color negro mate; tapa superior en tablero de placa melamínica BP de 18mm color a definir; tapas molduradas de PVC negro en los extremos de los tubos; cantoneras de 20x45mm molduradas de PVC rígido color negro; placa de refuerzo vertical en tablero de placa melamínica BP de 18mm a definir; reguladores metálicos de altura con base de goma.\nMedidas: 1,10x1,10m; alto 0,78m. ","MT",1,null,0]
[null,3,"MOSTRADORES"]
[null,"3.1","Mostrador de Recepcion PB.\nTipo: Estructura o marco de ajuste en madera maciza de 2”x2”, frente y tapa enchapados en paraiso lustrado claro. Borde macizo 2\"x2\" en paraiso lustrado oscuro. Zócalo de madera maciza revestida con chapa de aluminio pañeada y regatones regulables ocultos en la madera. Estantes de placa enchapada de 25mm en madera paraiso. Puertas de de placa enchapada de 25mm con cerradura a cilindro tipo Papaiz y tiradores (ver detalle T1). Refuerzos para mesada de tubos metálicos de 30x50mm.Terminación madera lustrada semi mate en tono natural. Sobretapa y frente de vidrio templado de 10mm con film ploteado apoyada sobre separadores de aluminio de 1\" y botones de terminacion, separación de sobretapa 5cm. tapa de granito natural. Diseño, según planos. \nMedidas: 4,00x0,80 mts. Alturas: 0,80 - 1,10 - 1,20m.","MOS1",1,null,{"$f":"+E49*F49","v":0}]
[null,"3.2","Mostrador de Recepcion \nTipo: Estructura o marco de ajuste en madera maciza de 2”x2”, frente y tapa enchapados en paraiso lustrado claro. Borde macizo 2\"x2\" en paraiso lustrado oscuro. Zócalo de madera maciza revestida con chapa de aluminio pañeada y regatones regulables ocultos en la madera. Estantes de placa enchapada de 25mm en madera paraiso. Puertas de de placa enchapada de 25mm con cerradura a cilindro tipo Papaiz y tiradores (ver detalle T1). Refuerzos para mesada de tubos metálicos de 30x50mm.Terminación madera lustrada semi mate en tono natural. Sobretapa y frente de vidrio templado de 10mm con film ploteado apoyada sobre separadores de aluminio de 1\" y botones de terminacion, separación de sobretapa 5cm. tapa de granito natural. Diseño, según planos. \nMedidas: 2,40x0,80 mts. Alturas: 0,80 - 1,10 - 1,20m.","MOS4 ",2,null,0]
[null,"3.3","Mostrador de Restaurante- caja (1,00x0,60)\nTipo: Estructura frente, tapa y laterales en tableros de placa melamínica BP de 18mm color oscuro; tapacantos con cinta melamínica termofusionada. Cajonera en placas melamínicas BP de 18mm color a definir, guías metálicas telescopicas con bolillas de acero, cerradura a cilindro tipo PAPAIZ. Zócalo de melamina de 18mm. de espesor revestida con chapa de aluminio pañeada de 2mm. Diseño, según planos.\nMedidas:1,00X0,60  (verificar en obra).","MOS5 a",1,null,0]
[null,"3.4","Mostrador de Restaurante- exibidora (1,50x0,60).\nTipo: Estructura frente, tapa y laterales en tableros de placa melamínica BP de 18mm color oscuro; tapacantos con cinta melamínica termofusionada. Frente de para exposicion vidrio templado de 10mm. sellados con silicona o fijadores. Puertas corredizas de cristam templado de 8mm con guias de aluminio anodizado natural. Tapa fondo de granito natural negro. Zócalo de melamina de 18mm. de espesor revestida con chapa de aluminio pañeada de 2mm. Diseño, según planos.\nMedidas:1,50X0,60  (verificar en obra).","MOS5 b",2,null,0]
[null,"3.5","Mostrador recto para atención en juzgados.\nTipo: Estructura en tubos de acero de 50x20mm y 1,2mm de espesor; acabada con pintura epoxi aplicada electroestáticamente; frente, tapa y laterales en tableros de placa melamínica BP de 18mm color a definir; tapacantos con cinta melamínica termofucionada. Cajoneras colgantes en placas melamínicas BP de 18mm color a definir, guías metálicas telescopias con bolillas de acero, cerradura a cilindro tipo PAPAIZ. Sobretapa de granito natural negro espesor 2cm., apoyada sobre 6 separadores de aluminio de 1\" de diámetro, separación de sobretapa sobre mesada 5cm. Zócalo de madera maciza revestida con chapa de aluminio pañeada de 2mm. Vidrio laminado de 6mm con sujetadores cromados en los extremos. Espacio sobre la mesada de granito abierto. Remate superior en placas melamínicas BP de 18mm color a definir. Diseño, según planos. \nMedidas: largo 1,20m y alto 2,15m (verificar en obra).","MRS",95,null,0]
[null,"3.6","Mostrador recto para atención en Juzgado de Paz\nTipo: Estructura en tubos de acero de 50x20mm y 1,2mm de espesor; acabada con pintura epoxi aplicada electroestáticamente; frente, tapa y laterales en tableros de placa melamínica BP de 18mm color a definir; tapacantos con cinta melamínica termofucionada. Cajoneras colgantes en placas melamínicas BP de 18mm color a definir, guías metálicas telescopias con bolillas de acero, cerradura a cilindro tipo PAPAIZ. Sobretapa de granito natural negro espesor 2cm., apoyada sobre 6 separadores de aluminio de 1\" de diámetro, separación de sobretapa sobre mesada 5cm. Zócalo de madera maciza revestida con chapa de aluminio pañeada de 2mm. Espacio sobre la mesada de granito abierto. \nMedidas: largo 1,05 m y alto 1,10 (verificar en obra).","MRS2",4,null,0]
[null,4,"MUEBLES DE COCINA Y KITCHINETTE"]
[null,"4.1","Mueble de kitchinette SS1 hasta Azotea \nMueble de kitchennette, el mueble de melamina se inserta bajo una mesada de granito natural con pollera y zocalo existente. Puertas, cajones y estructura Lateral y fondo de Melamina BP. De 15mm, tapacantos con cinta melamínica termofusionada. Estantes de Melamina BP de 18mm. de espesor. Puertas con Bisagras con cierre automático. Patas circulares de al. anodizado natural regulables de 15cm. de altura. Tapacantos con cinta melaminica. Ver plano. Verificar medidas en Obra. Ubicación: Planta baja al 6to. piso.\nMedidas: 2,00x0,60x0,85mts","MK1",7,null,{"$f":"+E56*F56","v":0}]
[null,"4.2","Mueble de kitchinette \nMueble de kitchennette, el mueble de melamina se inserta bajo una mesada de granito natural con pollera y zocalo existente. Puertas, cajones y estructura Lateral y fondo de Melamina BP. De 15mm, tapacantos con cinta melamínica termofusionada. Estantes de Melamina BP de 18mm. de espesor. Puertas con Bisagras con cierre automático. Patas circulares de al. anodizado natural regulables de 15cm. de altura. Tapacantos con cinta melaminica. Ver plano. Verificar medidas en Obra.Ubicación:Kitchinettes de SS2,SS1, Azotea y Juzgado de Paz.\nMedidas: 1,50x0,60x0,85 mts","MK2",4,null,{"$f":"+E57*F57","v":0}]
[null,"4.3","Mueble de kitchinette\nMueble de kitchennette, el mueble de melamina se inserta bajo una mesada de granito natural con pollera y zocalo existente. Puertas, cajones y estructura Lateral y fondo de Melamina BP. De 15mm, tapacantos con cinta melamínica termofusionada. Estantes de Melamina BP de 18mm. de espesor. Puertas con Bisagras con cierre automático. Patas circulares de al. anodizado natural regulables de 15cm. de altura. Tapacantos con cinta melaminica. Ver plano. Verificar medidas en Obra. Ubicación: Cocina de guardería.\nMedidas: 2,36x0,60x0,85mts","MK3",1,null,{"$f":"+E58*F58","v":0}]
[null,"4.4","Mueble de kitchinette  \nMueble de kitchennette, el mueble de melamina se inserta bajo una mesada de granito natural con pollera y zocalo existente. Puertas, cajones y estructura Lateral y fondo de Melamina BP. De 15mm, tapacantos con cinta melamínica termofusionada. Estantes de Melamina BP de 18mm. de espesor. Puertas con Bisagras con cierre automático. Patas circulares de al. anodizado natural regulables de 15cm. de altura. Tapacantos con cinta melaminica. Ver plano. Verificar medidas en Obra. Ubicación: Kitchinette de adolescentes.\nMedidas: 1,70x0,60x0,85mts","MK4",1,null,{"$f":"+E59*F59","v":0}]
[null,5,"ARMARIOS Y ESTANTES"]
[null,"5.1","Armario de música y video\nTipo: Estructura en tableros de placa melamínica BP de 18mm color negro; tapacantos con cinta melamínica termofucionada negra; estantes en placas melamínicas BP de 18mm imitación trébol; cuerpo dividido en un espacio superior y otro inferior,  cerrados con dos puertas batientes en tableros de placa melamínica BP de 18mm color negro mate, bisagras regulables macizas, con resorte de traba al cerrarse y guías de teflón; tiradores en C de Aluminio, pasadores internos cromados y cerradura a cilindro tipo PAPAIZ; reguladores de altura con bases de goma; tablero de fondo con perforaciones para el paso de cables. Sujeción entre placas con tornillos armadores y tuercas cilíndricas embutidas en las placas\nMedidas:  0,90x0,60m; alto 2,10m.","AMV",5,null,{"$f":"+E61*F61","v":0}]
[null,"5.2","Estante de acero inoxidable\nTipo: Estantería de chapa de acero inoxidable de 1,2mm Aisi 304 plegada; con seis bandejas de altura de colocación regulable; estructura de caños soldados de acero inoxidable.\nMedidas: 0,94x0,35m; alto 2,00m.","EI",6,null,0]
[null,"5.3","Estante para libros\nMueble para libros de melamina con 6 estantes con refuerzos y divisorias centrales de melamina de 18mm con combinación de colores según detalle.\nMedidas: 2,00x0,35 Altura: 1,80","EL",5,null,0]
[null,"5.4","Estante métálico\nTipo: Estantería de chapa metálica plegada; con seis bandejas de altura de colocación regulable; veletas de refuerzo en los extremos del estante; pinturas horneadas color: parantes marrón, estantes beige. Ver detalle en planos.\nMedidas: 0,94x0,35m; alto 2,00m.","EM",395,null,0]
[null,"5.5","Estante métálico soldado\nTipo: Estantería de chapa metálica plegada; con seis bandejas de altura de colocación regulable; veletas de refuerzo en los extremos del estante; pintura horneada color marron. Uniones soldadas. Ver detalle en planos.\nMedidas: 0,94x0,35m; alto 2,00m.","EMS",155,null,0]
[null,"5.6","Gaveta metálica\nTipo: Estructura, cerramientos, puertas y estantes de chapa metálica plegada; con dos (2) puertas y cuatro (4)  bandejas por modulo de altura de colocación regulable; con cuatro (4) patas metálicas; Terminación con pintura EPOXI-POLIÉSTER. Color: Estructura y cerramiento marrón, puertas beige. Cerradura con Bombillo con llave exterior tipo PAPAIZ.\nMedidas: 0,30x0,50m; alto 1,90m. Ver plano.","LOC",20,null,0]
[null,"5.7","Módulo archivador\nModulo Archivador con zócalo en placa melaminica color a definir\nTipo: Estructura en tableros de placa melamínica BP de 18mm color a definir, tapacantos con cinta melamínica termofucionada; un panel separador vertical de 18mm de espesor; dos estantes interiores con guías de colocación en un costado y en el panel separador.  Dos puertas batientes en tableros de placa melamínica BP de 18mm, bisagras regulables macizas, con resorte de traba al cerrarse y guías de teflón; cerradura con cilindro tipo PAPAIZ; tiradores en C de aluminio. Sistema de encastre para apilar en piso y techo de cada módulo. 4 Bolsillos metálicos para rótulos. Sujeción entre placas con tornillos armadores y tuercas cilíndricas embutidas en las placas. zócalo desmontable de placas melaminicas BP de 18mm. reguladores metálicos de altura con bases de goma; (no debe usarse cola ni clavos).\nMedidas:0,75x0,45m; alto 1,05m.","MA",890,null,0]
[null,"5.8","Módulo archivador imitación trebol\nModulo Archivador con zócalo en placa melaminica imitación trébol (despachos jueces)\nTipo: Estructura en tableros de placa melamínica BP de 18mm color a definir e imitación trébol en despachos de Jueces, tapacantos con cinta melamínica termofucionada; un panel separador vertical de 18mm de espesor; dos estantes interiores con guías de colocación en un costado y en el panel separador.  Dos puertas batientes en tableros de placa melamínica BP de 18mm, bisagras regulables macizas, con resorte de traba al cerrarse y guías de teflón; cerradura con cilindro tipo PAPAIZ; tiradores en C de aluminio. Sistema de encastre para apilar en piso y techo de cada módulo. 4 Bolsillos metálicos para rótulos. Sujeción entre placas con tornillos armadores y tuercas cilíndricas embutidas en las placas. zócalo desmontable de placas melaminicas BP de 18mm. reguladores metálicos de altura con bases de goma; (no debe usarse cola ni clavos).\nMedidas:0,75x0,45m; alto 1,05m.","MAT",108,null,0]
[null,"5.9","Mueble de Guarderia en aulas \nTipo: Estructura en tableros de placa melamínica MDP de 18mm y 15mm colores varios, tapacantos con cinta melamínica termofusionada; paneles separadores verticales y horizontales de 18mm de espesor. Puertas batientes en tableros de placa melamínica MDP de 18mm, bisagras regulables macizas, con resorte de traba al cerrarse y guías de teflón; cerradura con cilindro tipo PAPAIZ; tiradores tipo aplique de color según diseño. Sujeción entre placas con tornillos armadores y tuercas cilíndricas embutidas en las placas. Reguladores metálicos de altura con bases de goma; (no debe usarse cola ni clavos). Mecanismo de apertura de puertas tipo TIP-ON\nMedidas:3,40 x2,00 mts","MG",3,null,0]
[null,6,"CORTINAS"]
[null,"6.1","Cortina\nCortina Vertical Corrediza y plegable. Tela antisolar pesada, guías de aluminio y PVC. Inferior pesos metálicos y cadenitas metálicas de unión entre pesos. Ubicación: Oficinas y despachos en gral. Color a definir, presentar muestras.\nMedidas 3,00X1,40 (verificar en obra)","COR 1",78,null,{"$f":"+E71*F71","v":0}]
[null,"6.2","Cortina \nCortina Vertical Corrediza y plegable. Tela antisolar pesada, guías de aluminio y PVC. Inferior pesos metálicos y cadenitas metálicas de unión entre pesos. Ubicación: Despachos de tribunal de sentencia piso 2.Color a definir, presentar muestras.\nMedidas 3,00X1,60 (verificar en obra)","COR 2",4,null,0]
[null,"6.3","Cortina\nCortina Vertical Corrediza y plegable. Tela antisolar pesada, guías de aluminio y PVC. Inferior pesos metálicos y cadenitas metálicas de unión entre pesos. Ubicación: Biblioteca. Color a definir, presentar muestras.\nMedidas: 3,90X1,60 (verificar en obra)","COR 3",1,null,0]
[null,"6.4","Cortina\nCortina Vertical Corrediza y plegable. Tela antisolar pesada, guías de aluminio y PVC. Inferior pesos metálicos y cadenitas metálicas de unión entre pesos. Ubicación: oficina PB, bloque C. Color a definir, presentar muestras.\nMedidas 2,00x1x40 (verificar en obra)","COR 4",1,null,0]
[null,"6.5","Cortina\nCortina Vertical Corrediza y plegable. Tela antisolar pesada, guías de aluminio y PVC. Inferior pesos metálicos y cadenitas metálicas de unión entre pesos. Ubicación: Oficina de administración. Color a definir, presentar muestras.\nMedidas: 5,00X1,10 (verificar en obra)","COR 5",1,null,0]
[null,"6.6","Cortina\nCortina Vertical Corrediza y plegable. Tela antisolar pesada, guías de aluminio y PVC. Inferior pesos metálicos y cadenitas metálicas de unión entre pesos. Ubicación: Oficina de administración. Color a definir, presentar muestras.\nMedidas: 3,1X1,10  (verificar en obra)","COR 6",1,null,0]
[null,"6.7","Cortina\nCortina Vertical Corrediza y plegable. Tela antisolar pesada, guías de aluminio y PVC. Inferior pesos metálicos y cadenitas metálicas de unión entre pesos. Ubicación: Oficina de administración. Color a definir, presentar muestras.\nMedidas:1,00X1,10  (verificar en obra)","COR 7",1,null,0]
[null,"6.8","Cortina\nCortina Vertical Corrediza y plegable. Tela antisolar pesada, guías de aluminio y PVC. Inferior pesos metálicos y cadenitas metálicas de unión entre pesos. Ubicación: Oficinas PB bloque A. Color a definir, presentar muestras.\nMedidas: 4,90x1,40  (verificar en obra)","COR 8",1,null,0]
[null,"6.9","Cortina\nCortina Vertical Corrediza y plegable. Tela antisolar pesada, guías de aluminio y PVC. Inferior pesos metálicos y cadenitas metálicas de unión entre pesos. Ubicación: Oficina en azotea bloque B. Color a definir, presentar muestras.\nMedidas: 1,60x2,60 (verificar en obra)","COR 9",1,null,0]
[null,"6.10","Cortina\nCortina Vertical Corrediza y plegable. Tela antisolar pesada, guías de aluminio y PVC. Inferior pesos metálicos y cadenitas metálicas de unión entre pesos. Ubicación: Oficina en azotea bloque B. Color a definir, presentar muestras.\nMedidas: 2,40x0,80(verificar en obra)","COR 10",1,null,0]
[null,"6.11","Cortina\nCortina Vertical Corrediza y plegable. Tela antisolar pesada, guías de aluminio y PVC. Inferior pesos metálicos y cadenitas metálicas de unión entre pesos. Ubicación: Oficina en azotea Bloque B. Color a definir, presentar muestras.\nMedidas: 1,70X1,40 (verificar en obra)","COR 11",1,null,0]
[null,"6.12","Cortina\nCortina Vertical Corrediza y plegable. Tela antisolar pesada, guías de aluminio y PVC. Inferior pesos metálicos y cadenitas metálicas de unión entre pesos. Ubicación: Oficinas del Juzgado de paz. Color a definir, presentar muestras.\nMedidas: 2,60 X0,80 (verificar en obra)","COR 12",3,null,0]
[null,"6.13","Cortina\nCortina Vertical Corrediza y plegable. Tela antisolar pesada, guías de aluminio y PVC. Inferior pesos metálicos y cadenitas metálicas de unión entre pesos. Ubicación: Oficina del Juzgado de Paz. Color a definir, presentar muestras.\nMedidas: 1,80X1,40 (verificar en obra)","COR 13",1,null,0]
[null,"6.14","Cortina\nCortina Vertical Corrediza y plegable. Tela antisolar pesada, guías de aluminio y PVC. Inferior pesos metálicos y cadenitas metálicas de unión entre pesos. Ubicación: sala de audiencia, Juzgado de Paz. Color a definir, presentar muestras.\nMedidas: 1,80 X0,80 (verificar en obra)","COR 14",1,null,0]
[null,"6.15","Cortina\nCortina Vertical Corrediza y plegable. Tela antisolar pesada, guías de aluminio y PVC. Inferior pesos metálicos y cadenitas metálicas de unión entre pesos. Ubicación: Oficinas en 6to. piso bloque A. Color a definir, presentar muestras.\nMedidas: 1,00X1,00 (verificar en obra)","COR 15",2,null,0]
[null,7,"PORTAPLANTERA Y BASUREROS"]
[null,"7.1","Papelera baja de Melamina\nEstructura en placas de melamina BP de 18mm color a definir, tapacantos con cinta melamínica termofusionada. Cantonera en PVC negro de 20x40mm. En el interior posee una papelera plástica de base cuadrangular del tipo P3. Ver detalle en planos.","P2",113,null,{"$f":"+E87*F87","v":0}]
[null,"7.2","Papelera plástica de planta cuadrangular med. Aprox de 0,25x0,25x0,25 capacidad de 15 litros ","P3",413,null,0]
[null,"7.3","Papelera plástica de planta circular con capacidad de 100 lts. Con tapa vaivén","P4",68,null,0]
[null,"7.4","Papelera plástica de planta circular. Sin perforaciones. Capacidad de 50 lts.","P5",6,null,0]
[null,"7.5","Papelera en aulas de Guardería. Papelera ecológica con 3 compartimentos interiores independientes para cada residuo. Cuerpo, tapa y cubos interiores fabricados en Polipropileno de alta calidad. \nTapa accionable por pedal fabricado en acero cromado. Capacidad total 50lts.\n","P6",3,null,0]
[null,"7.6","Porta plantera\nEstructura en placa melamínica BP de 18mm color a definir; tapacantos con cinta melamínica termofucionada. Cantonera de PVC negro de 20x40mm. Plantera de cerámica cilíndrica de color natural diámetro 35cm., base para plantera de PVC diámetro 40cm. color negro, plantas ornamentales de 1,50m. de altura como mínimo.  Ver detalle en planos","PPL",69,null,0]
[null,"7.7","Papelera baja de imitación Trébol.\nEstructura en placas de melamina BP de 18mm imitación Trébol, tapacantos con cinta melamínica termofucionada. Cantonera en PVC negro de 20x40mm. En el interior posee una papelera plástica de base cuadrangular. Ver detalle en planos.","PT",39,null,0]
[null,8,"EQUIPAMIENTOS VARIOS"]
[null,"8.1","Atril\nAtril de madera de paraíso multilaminada con terminación de lustre natural. Rebaje 1cm la en tapa superior, escudo de acero inoxidable satinado pegado a la parte frontal. Estructura de tubos metálicos de 40x40 y contrapeso inferior de placa de hierro de 1cm.\nMedidas: 0,35x0,55x1,20","A",1,null,{"$f":"+E95*F95","v":0}]
[null,"8.2","Almohadon\nRelleno con gramos de espuma de poliestireno expandido, tapizado en simil cuero color a definir, con cierre de 30cm. \nMedidas 80x80cm. Altura 20cm.","AL",2,null,0]
[null,"8.3","Mástil para bandera\nMástil con bandera. Base de madera maciza de paraiso con relieve, mástil de paraiso de 5cm. De diámetro. Con provisión de bandera del Paraguay con escudos bordados en Tejido de Ñanduti. Terminación Lustrada con protección de Laca poliuretanica aplicada con soplete. \nMedidas: Base 0,40x0,40m. y 2,00m. de altura. Ver detalle Plano","BAN",5,null,0]
[null,"8.4","Barandilla Estructura metalica y madera (sala de juicios orales)\nAlto 0,90m; en módulos desmontables con parantes de tubos metálicos de 60x40mm en los extremos y largueros de tubos metálicos de 20x40mm; paneles de placa melamínica color negro mate; pasamanos moldurado de 50x80mm de paraiso sujeto a los largueros; acabado del paraiso con lustre oscuro. Incluye doble puerta vaivén de 0,80x0,90m con traba a bolilla metálica con resorte. Ver detalle Plano\nMedida 7,70m de largo por 0,90m. De altura","BAR",4,null,0]
[null,"8.5","Borde de protección perimetral de madera. Revestido con placas de paraiso de 8mm. Acabado lustre natural'. Medidas: largo 17 m y ancho 30cm. Altura desde el piso 0,55m. Ubicación: Salas de juicios orales sector publico. Verificar Medidas en Obra. ","BRP",4,null,0]
[null,"8.6","Camilla para inspecciones médicas\nEstructura metálica de caños Cromados de 1\" de diámetro. Superior estructura de madera multilaminada de 10mm. acolchada con espuma poliuretanica de 5cm. de espesor, tapizados integralmente en símil cuero color negro mate.\nMedidas: largo 1.90m., ancho 0.60m. Altura aproximada 0.75m.","CAM",3,null,0]
[null,"8.7","Cama litera \nCamas de 2,00mx0,90m. De 2 pisos de estrutura metálica de tubos de acero reforzado de 50mm y pintados con pintura epoxi color a definir. Parrilla de listones de madera de pino tratada. Incluye 2 colchones de una plaza de espuma de alta densidad espesor 15cm. y 2 Almohadas de espuma de 10cm. de espesor.\nMedidas: 2,00x0,90","CAM L",1,null,0]
[null,"8.8","Desfibrilador\nDesfibrilador externo semiautomático, ligero y de fácil portabilidad, mayor agilidad de respuesta ante una víctima de muerte súbita o parada cardiorespiratoria. Duración de la batería de 5 años. Peso aproximado de 1,5 kgs. Provisto de instrucciones de voz en español que guiará al usuario durante todo el proceso de desfibrilación de una forma sencilla y clara, adaptándose al ritmo de uso de cada persona, de tal manera que realizará todos los pasos, y si una instrucción no se ha realizado, el desfibrilador lo detectará e invitará a realizarla, recordándole la necesidad de contactar con los servicios de emergencias. El dispositivo realizara automáticamente revisiones a su funcionamiento, garantizando su óptimo estado en el momento que es requerido. Incluye caja de montaje por pared. El equipo debera contar con 2 juegos de almohadillas para adultos y 1 juego para niños. Tambien se debera proveer 2 juegos de almohadillas para entrenamiento.","DES",1,null,0]
[null,"8.9","Escalera doble\nEscalera doble en caños cromados de 1\" de diámetro y placas de multilaminada de 10mm revestidas en goma antideslizante\n","ESC",3,null,0]
[null,"8.10","Cambiador de pañales\nPañalera horizontal para cambio de pañales, fijados a la pared en los baños de minusvalidos, Material de fabricacion polietileno de alto impacto, resistente a la proliferacion de hongos y bacterias, soportes para fijacion en acero inoxidable, ganchos para colgar la pañalera o el bolso.\nMedidas aprox. 85cm x 55 cm. y 10cm de profundidad","PAÑ",8,null,0]
[null,"8.11","Perchita individual de madera pintada con pintura sintética color a definir. Ver detalle","PER G",15,null,0]
[null,"8.12","Pizarrón de Guardería de madera fenolica\nPizarrón con forma de casita, de placa de madera fenólica de 10mm con bastidor de madera de pino tratada con soporte para borrador y marcadores. Terminación de pintura negra para pizarras, manos necesarias. Ver detalle\nMedidas: (1,60x1,50)","PIZ G",3,null,0]
[null,"8.13","Reja metálica Tipo 1\nReja compuesta por un módulo fijo y una puerta de 0,90x2,10 de malla artistica de 1 1/2\" con bastidores de ángulos y caños metálicos de-50x50mm, parantes de 100x100mm. Tratamiento previo con antióxido y pintura final color grafito. Ver detalle. Ubicación: Depósitos de 6to. piso.","RJ1",10,null,0]
[null,"8.14","Reja metálica Tipo 2\nReja fija de malla artistica de 1 1/2\" con bastidores de ángulos y caños metálicos de-50x50mm, parantes de 100x100mm. Tratamiento previo con antióxido y pintura final color grafito. Ver detalle. Ubicación: Depósitos de 6to. piso.","RJ2",8,null,0]
[null,"8.15","Tarima en Sala de Juicios Orales\nEstructura de madera, Tirantes de lapacho de 2x6\" cada 50cm., 10cm de zócalo de madera maciza revestido con plancha de aluminio de 2mm; laterales de placa melamínica color negro mate; canto superior 40x40mm de lapacho oscuro; piso de lapacho lustrado de 4\" Machimbrado sobre placas fenólicas de 16mm.\n Medidas 2,30x3,40m y 0,20m de altura. ","TAR 1",4,null,0]
[null,9,"REVESTIMIENTOS"]
[null,"9.1","Revestimiento de Recepción de Planta baja- Superficie:28 m2 - Dimensiones: 4,63x6,80\nCompuesto por paneles de placa carpintera de madera de paraiso lustrada con rebaje de melamina color gris chumbo, fijado a estructura de madera de listones de 2x2\". Ver detalle en planos.","RPB",1,null,{"$f":"+E111*F111","v":0}]
[null,"9.2","Revestido con placas de paraiso de 12mm sobre estructura de listones de paraiso de 40x40mm. Acabado lustre natural. Buñas de 1cm según detalle. Cantoneras de paraiso macizo lustrado. Medidas: largo 7,65 m y alto 2,80 m. Ubicación: Salas de Juicios Orales 1,2,3 Planta Baja. Verificar Medidas en Obra. Ver detalle en planos. Superficie 21,40 m2  - Dimensiones:7,65x2,80","RSJ",4,null,{"$f":"+E112*F112","v":0}]
[null,"9.3","Revestimiento de salón de usos múltiples- Superficie: 20 m2  - Dimensiones:7,20x2,80\nCompuesto por paneles de placa carpintera de madera de paraiso lustrada con rebaje de melamina color gris chumb, fijado a estructura de madera de listones de 2x2\". Ver detalle en planos.","RSUM",1,null,{"$f":"+E113*F113","v":0}]
[null,10,"EQUIPAMIENTOS EXTERIORES, JUEGOS INFANTILES Y EJERCITADORES"]
[null,"10.1","Banco metalico\nEstructura perimetral de tubo de acero de 40mm de diametro con asiento y respaldo de acero perforado de 2mm de grosor y agujeros de 7mm de diametro. Acabado zincado electrolitico por inmersion y pintura de poliester en polvo color gris. Anclaje con tornillos galvanizados de fijacion al hormigon de base. Medidas 2,00m de largo por 0,75m. de ancho. aproximadas. Ver detalle en plano EXT 02","Banco",20,null,{"$f":"+E115*F115","v":0}]
[null,"10.2","Basurero metalico\nEstructura de soporte planchuelas y caños galvanizados, contenedor circular en chapa metalica acero galvanizado de 2mm de espesor. Tratamiento imprimacion epoxica y pintura de poliester en polvo negro. Anclaje con pernos de fijacion al suelo. Sistema de giro con pernos metalicos de alta dureza antivandalismo. Med. 0,88m de altura. Diametro cesto 37cm. Ver detalle en plano EXT 02","BM",16,null,0]
[null,"10.3","Basurero metalico con cenicero\nEstructura de soporte planchuelas y caños galvanizados, contenedor circular en chapa metalica acero galvanizado de 2mm de espesor. Tratamiento imprimacion epoxica y pintura de poliester en polvo negro. Anclaje con pernos de fijacion al suelo. Sistema de giro con pernos metalicos de alta dureza antivandalismo. Med. 0,88m de altura. Diametro cesto 37cm. Cenicero metalico circular diametro 8cm. y 27 cm. de altura fijado al parante del basurero. Ver detalle en plano EXT 02","BMC",13,null,0]
[null,"10.4","Contenedor para basuras con tapa.\nContenedor plastico HDPE, polietileno de Alta densidad, alta dureza con resistencia a los impactos, dificil rotura, resistente al cultivo de bacterias, hongos y liquenes. Soporte metalico para utilizacion de equipos recolectores. Ruedas con freno de 10cm. de diametro.Fabricado bajo normas EN840, ISO 9001 e ISO 14000.  Med. 1,38m X 1,06m. altura 1,28m. Capacidad 1.100 litros.","CM",4,null,0]
[null,"10.5","Tope de ruedas para estacionamientos.\nTope para ruedas de vehiculos en cada espacio para estacionamiento. Fabricado en caucho reutilizado triturado reforzado con poliuretano y con bandas reflectivas adhesivas en nichos preparados en el molde del tope. Interior macizo,  relleno con caucho reciclado sin espacios huecos, Fijacion mediante tarugos metalicos y tornillos de por lo menos 4 pulgadas. Med. largo 1,80m. ancho 15cm. y altura 10 cm.","TOP",92,null,0]
[null,"10.6","Maceta alta 1\nPortamacetas rectangular de chapa metálica doblada de 2mm de espesor. Estructura de tubos metálicos de  40x40mm y planchuelas inferiores para su fijación al suelo con tarugos metálicos. Base de metal desplegado con acabado epoxi. Acabado con 6 manos de pintura automotriz color grafito oscuro. Incluye macetas y bandejas de PVC, tierra abonada y plantas ornamentales: tradescantia zebrina. Medidas:2,20x0,35x1,00m","MA 1",9,null,0]
[null,"10.7","Maceta alta 2\nPortamacetas rectangular de chapa metálica doblada de 2mm de espesor. Estructura de tubos metálicos de  40x40mm y planchuelas inferiores para su fijación al suelo con tarugos metálicos. Base de metal desplegado con acabado epoxi. Acabado con 6 manos de pintura automotriz color grafito oscuro. Incluye macetas y bandejas de PVC, tierra abonada y plantas ornamentales: tradescantia zebrina. Medidas:1,10x0,35x0,40m","MA 2",4,null,0]
[null,"10.8","Piso de caucho EPDM\nFormato: losetas de 0,50X0,50 en colores diversos.\nEspesor: 25 mm\nPeso aprox.: Hasta 31 kg/m2\nTolerancia: ± 2 mm de espesor y 1% de variación dimensional\nConsiderar como base existente piso de h°a° llaneado.\nUbicación: parque de juegos de plaza y parque de juegos de guardería. Colores a definir según muestras y diseño segun detalle. Considerar desperdicio por cortes.\nMedidas en m2.","Piso de caucho",460,null,0]
[null,"10.9","Andamios modulares.\nConjunto de 12 modulos de andamios, cada modulos contada con una escalera de angulos metalicos, metal desplegado en los escalones y barandillas de tubos . Crucetas de caños con sistemas de fijacion de trabas, no con tornillos. Encastre entre andamios macho/hembra. Tres plataformas metalicas perforadas y reforzadas. 4 ruedas reforzadas con rodamiento de goma y frenos. Terminacion pintura tipo automotriz de alta resistencia.","Andamios",1,null,0]
[null,"10.10","Casa torre con conector, toboganes y hamacas\nEstructura con postes metalicos de hierro galvanizado en caliente y demas estructuras de acero inoxidable. Espesor minimo de los componentes estructurales metalicos galvanizados es de 3mm. Partes plasticas LDPE, polietileno de Baja densidad, capacidad elastica y ligera, alta resistencia a los impactos, dificil rotura, uniformidad de colores en cantos y laterales, acabados continuos y homogeneos, resistente al cultivo de bacterias, hongos y liquenes. Piezas metalicas Acero S-235 galvanizado y lacado y Acero inox AISI-304. Tornillos armadores de acero inoxidable y galvanizados.  Pintura lacado en polvo con resina de poliester, endurecedores y pigmentos excentos de plomo y alta resistencia a la meteorizacion. Escaleras de subida a niveles, 3 toboganes a distintos niveles. Ver diseño orientativo en plano EXT 02","Torre con hamacas",1,null,0]
[null,"10.11","Casa torre con conector y toboganes\nEstructura con postes metalicos de hierro galvanizado en caliente y demas estructuras de acero inoxidable. Espesor minimo de los componentes estructurales metalicos galvanizados es de 3mm. Partes plasticas LDPE, polietileno de Baja densidad, capacidad elastica y ligera, alta resistencia a los impactos, dificil rotura, uniformidad de colores en cantos y laterales, acabados continuos y homogeneos, resistente al cultivo de bacterias, hongos y liquenes. Piezas metalicas Acero S-235 galvanizado y lacado y Acero inox AISI-304. Tornillos armadores de acero inoxidable y galvanizados.  Pintura lacado en polvo con resina de poliester, endurecedores y pigmentos excentos de plomo y alta resistencia a la meteorizacion. Escaleras de subida a niveles, 3 toboganes a distintos niveles. Ver diseño orientativo en plano EXT 02","Torre",1,null,0]
[null,"10.12","Sube y Baja\nEstructura con resortes metalicos de hierro galvanizado en caliente. Partes plasticas HDPE, polietileno de Alta densidad, alta dureza con resistencia a los impactos, dificil rotura, resistente al cultivo de bacterias, hongos y liquenes. Piezas metalicas Acero S-235 galvanizado y lacado. Tornillos galvanizados.  Pintura lacado en polvo con resina de poliester, endurecedores y pigmentos excentos de plomo y alta resistencia a la meteorizacion. Ver diseño orientativo en plano EXT 02","Sube y Baja",6,null,0]
[null,"10.13","Balancin\nEstructura con resortes metalicos de hierro galvanizado en caliente. Partes plasticas HDPE, polietileno de Alta densidad, alta dureza con resistencia a los impactos, dificil rotura, resistente al cultivo de bacterias, hongos y liquenes. Piezas metalicas Acero S-235 galvanizado y lacado. Tornillos galvanizados.  Pintura lacado en polvo con resina de poliester, endurecedores y pigmentos excentos de plomo y alta resistencia a la meteorizacion. Ver diseño orientativo en plano EXT 02","Balancin",7,null,0]
[null,"10.14","Xilófono\nMarco principal de cañería de acero de ø 3,5” con espesor de 2.4mm que cumple normas ASTM.\nCampanas confeccionadas en Aluminio tipo 6063. Pernería de acero inoxidable. Pintura electrostática poliéster de alta duración sin plomo de 90 +/- 30 μ de espesor. \nSegún normas ASTM F1487 y EN1176. Medidas: 0,40 x 1,44 x 1,87 m","Xilófono",2,null,0]
[null,"10.15","Ejercitador de cintura\nEstructura portante de acero galvanizado en caliente, tubos, planchuelas, soportes de espesor minimo de 3mm. Componentes de los equipos para la movilidad varillas macizas de acero inoxidable con retenes plasticos de alta prestacion. Terminacion 1 mano de lacado en polvo compuesto por mezcla de resinas de poliester, endurecedores y pigmentos excentos de plomo y con alta resistencia. Piezas plasticas de polietileno HDPE de alta dureza. Tornillos de acero inoxidable. Medidas ver Plano EXT 02.","Cintura",1,null,0]
[null,"10.16","Andador Eliptico\nEstructura portante de acero galvanizado en caliente, tubos, planchuelas, soportes de espesor minimo de 3mm. Componentes de los equipos para la movilidad varillas macizas de acero inoxidable con retenes plasticos de alta prestacion. Terminacion 1 mano de lacado en polvo compuesto por mezcla de resinas de poliester, endurecedores y pigmentos excentos de plomo y con alta resistencia. Piezas plasticas de polietileno HDPE de alta dureza. Tornillos de acero inoxidable. Medidas ver Plano EXT 02.","Andador",1,null,0]
[null,"10.17","Ejercitador tipo Esqui\nEstructura portante de acero galvanizado en caliente, tubos, planchuelas, soportes de espesor minimo de 3mm. Componentes de los equipos para la movilidad varillas macizas de acero inoxidable con retenes plasticos de alta prestacion. Terminacion 1 mano de lacado en polvo compuesto por mezcla de resinas de poliester, endurecedores y pigmentos excentos de plomo y con alta resistencia. Piezas plasticas de polietileno HDPE de alta dureza. Tornillos de acero inoxidable. Medidas ver Plano EXT 02.","Esqui",1,null,0]
[null,"10.18","Ejercitador de Dorsales\nEstructura portante de acero galvanizado en caliente, tubos, planchuelas, soportes de espesor minimo de 3mm. Componentes de los equipos para la movilidad varillas macizas de acero inoxidable con retenes plasticos de alta prestacion. Terminacion 1 mano de lacado en polvo compuesto por mezcla de resinas de poliester, endurecedores y pigmentos excentos de plomo y con alta resistencia. Piezas plasticas de polietileno HDPE de alta dureza. Tornillos de acero inoxidable. Medidas ver Plano EXT 02.","Dorsales",1,null,0]
[null,"10.19","Ejercitador de Pectorales\nEstructura portante de acero galvanizado en caliente, tubos, planchuelas, soportes de espesor minimo de 3mm. Componentes de los equipos para la movilidad varillas macizas de acero inoxidable con retenes plasticos de alta prestacion. Terminacion 1 mano de lacado en polvo compuesto por mezcla de resinas de poliester, endurecedores y pigmentos excentos de plomo y con alta resistencia. Piezas plasticas de polietileno HDPE de alta dureza. Tornillos de acero inoxidable. Medidas ver Plano EXT 02.","Pectorales",1,null,0]
[null,11,"GENERAL"]
[null,"11.1","Elaboracion de inventario en base a la descripcion de las especificaciones tecnicas. \nSe considera como global para todo el equipamiento a proveer.","gl.",1,null,{"$f":"+E135*F135","v":0}]
[null,"11.2","Deposito de los equipamientos desarmados o armados, sillas armadas o desarmadas. Incluye guardia 24 horas y seguro contra todo riesgo.","mes",4,null,{"$f":"+E136*F136","v":0}]
[null,"11.3","Montaje de los equipamientos interiores y exteriores que debera ser realizado en un plazo no mayor a dos meses antes de la recepcion provisoria del lote.","gl.",1,null,{"$f":"+E137*F137","v":0}]
[null,null,"TOTAL GENERAL IVA INCLUIDO",null,null,null,{"$f":"SUM(G14:G137)","v":0}]

{"sheet":"Lote 2","index":2,"n_rows":131,"n_cols":7,"rows_kept":131,"cut":false,"hidden":false,"merged":[]}
[]
[null,{"$f":"+Resumen!B2","v":"CORTE SUPREMA DE JUSTICIA - PROGRAMA DE LAS NACIONES UNIDAS PARA EL DESARROLLO"}]
[null,{"$f":"+Resumen!B3","v":"\"PROGRAMA DE INFRAESTRUCTURA EDILICIA CSJ - PNUD\""}]
[null,{"$f":"+Resumen!B4","v":"SDP/14311/079/2025 - PROVISION Y MONTAJE DEL EQUIPAMIENTO MOBILIARIO INTERIOR Y EXTERIOR PARA LOS JUZGADOS DE 1° INSTANCIA DE FERNANDO DE LA MORA Y EL PALACIO DE JUSTICIA DE FILADELFIA."}]
[null,"LOTE 2 - PALACIO DE JUSTICIA DE FILADELFIA"]
[]
[null,"Ítem","Descripción","Código","Cantidad","Precio Unit. Gs.","Precio Total GS."]
[]
[null,null,"MOBILIARIO INTERIOR Y EXTERIOR"]
[null,1,"SILLAS Y SILLONES"]
[null,"1.1","Banco de madera para baños de funcionarios\nBanco de tablones de  madera de petereby de 2m x 2\". Patas de petereby de 3x3\" y refuerzos inferiores y superiores de petereby de 1x2\"\nMedidas: 1,50x0,50","B",2,null,{"$f":"+E11*F11","v":0}]
[null,"1.2","Sillon de espera\nTipo: Asiento y respaldo de forma única, estructura de resina de poliéster y fibra de vidrio, acolchados en espuma de poliuretano inyectado, terminación símil cuero negro. Patas estructura continua de tipo trapezoidal de tubo de acero oval de 50mm. estructura interna de acero, terminación con pintura epoxi aplicada electroestaticamente. Ver Plano","MOD",36,null,0]
[null,"1.3","Puff\nEstructura de madera maciza resistente atornillada y pegada. Laterales y superior tiras de goma a alta resistencia tornildas, revestido con espuma de alta densidad de 5cm. de espesor, tapizados en simil cuero, color a definir con muestras. Regatones regulables con base de goma sujeto a estructura de madera. Medidas: 0,50x0,50x0,50","PU",2,null,0]
[null,"1.4","Sillon de dos cuerpos\nEstructura de madera maciza revestida y conformada con espuma de poliuretano. Tapizado en cuero natural organico de color negro. Almohadones en espuma de poliuretano revestidos en cuero natural. Cuatro patas de madera maciza de 15x15cm. Y 7cm. De altura. Terminación de la madera Lustrada con protección de Laca poliuretanica aplicada con soplete. Ver detalle en plano. Medidas: 1,70x0,75.","SD",1,null,0]
[null,"1.5","Sillón de un cuerpo\nEstructura de madera maciza resistente atornillada y pegada, con tiras de goma de alta resistencia tornilladas a la madera conformado la forma basica, revestida con espuma de poliuretano. Tapizado en cuero natural de color negro. Almohadones en espuma de poliuretano revestidos en cuero natural. Cuatro patas de madera maciza de 15x15cm. Y 7cm. De altura. Terminación de la madera Lustrada con protección de Laca poliuretanica aplicada con soplete. Ver detalle en plano.","SD1",5,null,0]
[null,"1.6","Silla de guardería\nEstructura metalica tubular cilindrica o cuadrangular con cantos redondeados de 1\" de diametro aproximado, estructura soldada entre si. Terminacion pintura electroestatica colo gris. Asiento y respaldo de PVC inyectado. Colores Varios. Terminacion de patas con asientos de poliamida negra.","SG",54,null,0]
[null,"1.7","Sillón interlocutor, categoría 1\nTipo: Asiento y respaldo media altura y amplio, en espuma de poliuretano inyectado; soporte de respaldo en acero moldeado revestido en espuma de poliuretano integral. Terminación en símil cuero negro con costuras. Estructura de cuatro patas en acero o una continua tipo trineo, terminación cromada. Las patas traseras terminan con ruedas dobles en poliamida (caso de 4 patas) y las delanteras con apoyos de poliamida. Apoya brazos en espuma de poliuretano integral y texturizado, con estructura interna en tubo de acero oval cromado de 50mm. a continuación de las patas. ","SI1",52,null,0]
[null,"1.8","Sillón interlocutor, categoría 2\nTipo:  Asiento y respaldo de estructura metálica oblonga terminada con pintura epoxi aplicada electroestáticamente, asiento en espuma de poliuretano inyectado tapizado en símil cuero color negro, respaldo con estructura de polipropileno y malla de nylon resistente color negro, apoyabrazos integrados del mismo material, estructura metálica patas med. aprox 1cm.x4cm. y zapatas de poliamida Sistema apilable entre si.","SI2",471,null,0]
[null,"1.9","Silla interlocutor, categoría 3 \nTipo:  Asiento y respaldo de estructura metálica oblonga terminadacuin cromada de alta resistencia, asiento en espuma de poliuretano inyectado tapizado en símil cuero color negro, respaldo con estructura de polipropileno y malla de nylon resistente color negro, apoyabrazos integrados del mismo material.; estructura metálica cromada de las cuatro patas med. aprox 1cm.x4cm. y zapatas de poliamida. Usado en  Sala de juicios orales. Sistema apilable entre si.","SI3",70,null,0]
[null,"1.10","Silla interlocutor, categoría 4\nTipo:  Asiento y respaldo de estructura metálica oblonga terminación cromada de alta resistencia, asiento en espuma de poliuretano inyectado tapizado en símil cuero color negro, respaldo con estructura de polipropileno y malla de nylon resistente color negro, apoyabrazos integrados del mismo material.; mesa del lado derecho de PVC inyectado estructurado con el apoyabrazo, estructura metálica cromada de las cuatro patas med. aprox 1cm.x4cm. y zapatas de poliamida. Usado en  Salón de usos múltiples. Sistema apilable entre si.","SI4",156,null,0]
[null,"1.11","Silla para cafetería y restaurant\nEstructura metalica tubular cilindrica de 1\" de diametro aproximado. Terminacion pintura electroestatica colo gris. Asiento y respaldo en un solo cuerpo de PVC inyectado de alta dureza. Colores a definir. Terminacion de patas con asientos de poliamida negra.","SL",18,null,0]
[null,"1.12","Sillón de Trabajo categoría 1 - Jueces\nTipo: Asiento y respaldo alto y amplio, en espuma de poliuretano inyectado; soporte de respaldo en acero moldeado revestido en espuma de poliuretano integral. Terminación en símil cuero negro con costuras. Estructura giratoria de cinco patas, base de Aluminio fundido terminación plata brillante o metálica cromada. Regulación de Altura con pistón a Aire comprimido y mecanismo de reclinación. Cada pata termina con ruedas dobles en poliamida. Estructura metalica cromada o de aluminio fundido anodizado brillante con apoya brazos en espuma de poliuretano integral y texturizado, sujeta a la parte inferior del asiento.","ST1",32,null,0]
[null,"1.13","Sillón de Trabajo categoría 2 - Administrador\nTipo: Asiento y respaldo medio y amplio, en espuma de poliuretano inyectado; soporte de respaldo en acero moldeado revestido en espuma de poliuretano integral. Terminación en símil cuero negro con costuras. Estructura giratoria de cinco patas metálicas en estrella, base de Aluminio fundido terminación plata brillante o metálica cromada. Regulación de Altura con pistón a Aire comprimido y mecanismo de reclinación. Cada pata termina con ruedas dobles en poliamida. Estructura metalica cromada o de aluminio fundido anodizado brillante con apoya brazos en espuma de poliuretano integral y texturizado, sujeta a la parte inferior del asiento.","ST2",7,null,0]
[null,"1.14","Sillón de Trabajo categoría 3- Secretarios de juzgados\nTipo: Asiento y Respaldo normal. Estructura partida en 2 de polipropileno, asiento de poliuretano inyectado. Respaldo de malla de rylon resistente con movimiento de reclinación, soporte en tubo de acero revestido en espuma de poliuretano integral con regulación de 4 alturas. Estructura giratoria de cinco patas metálicas en estrella, base acero terminación con pintura epoxica negra mate o revestida en PVC. Regulación de Altura con pistón a Aire comprimido. Apoya brazos estructura interna de acero revestida en espuma de Poliuretano sujeta a la estructura inferior del asiento. Terminación tapizado símil cuero color negro.","ST3",73,null,0]
[null,"1.15","Sillón de Trabajo categoría 4- Funcionarios\nTipo:  Asiento y Respaldo normal. Estructura partida en 2 de polipropileno, asiento de poliuretano inyectado. Respaldo de malla de nylon resistente con movimiento de reclinación, soporte en tubo de acero revestido en espuma de poliuretano integral con regulación de 4 alturas. Estructura giratoria de cinco patas metálicas en estrella, base acero terminación con pintura epoxica negra mate o revestida en PVC. Regulación de Altura con pistón a Aire comprimido. Terminación tapizado símil cuero color negro.","ST4",250,null,0]
[null,"1.16","Silla alta de Cajera, categoría 5\nTipo: Silla alta; asiento y respaldo ídem ST4; giratoria; Estructura partida en 2 de polipropileno, asiento de poliuretano inyectado. Respaldo de malla de nylon resistente con movimiento de reclinación, soporte en tubo de acero revestido en espuma de poliuretano integral con regulación de 4 alturas. Estructura giratoria de cinco patas metálicas en estrella, base acero terminación con pintura epoxica negra mate o revestida en PVC y zaparas de apoyo. Regulación de Altura con pistón a Aire comprimido. Terminación tapizado símil cuero color negro. Aro posapies cromado de altura regulable.","ST5",70,null,0]
[null,"1.17","Tanden de 3 asientos\nTipo:  Estructura de base y apoya brazos en metal cromado espesor minimo de 2mm. Espladar y asiento elaborado en perimetro con tubos de acero cromadros y metal micro perforado. Asientos y respaldo de en espuma inyectada de poliuretano Integral color negro. Dos apoyos, la distancia aproximada entre ejes de asientos es de 60cm. Respaldo y asiento de aproximadamente 50cm. de ancho.","T",68,null,0]
[null,"1.18","Taburete alto\nTipo: Patas de caños metálicos circulares cromados de 1\" de diámetro, terminacion regatones de poliamida. asiento de Espuma de poliuretano inyectado con estructura de resina de pliester y fibra de vidrio, terminacion simil cuero negro, respaldo de PVC inyectado color negro con perforaciones. Altura 73cm. Detalle ver plano.","TAB",2,null,0]
[null,2,"ESCRITORIOS Y MESAS"]
[null,"2.1","Escritorio con mesa de Apoyo fija. Categoría 1\nTipo: Estructura en tableros de placa melamínica de baja presión (BP) de 18mm; cantoneras de 20x45mm molduradas de PVC rígido color negro; plano de trabajo y placa frontal imitación trébol; planos laterales en placa melaminica de 25mm. color negro mate; reguladores metálicos de altura con bases de goma. Mesa de apoyo conectada por la tapa cubre piernas y Tapa de mesa; módulo de tres cajones en placas melamínicas BP imitación trébol de 15mm, tiradores en C de aluminio, guías metálicas telescopicas con bolillas de acero, cerradura de bloqueo central. Sujeción entre placas con tornillos armadores y tuercas cilíndricas embutidas en las placas.\nMedidas: 2,00x0,70m + 1,00x0,60; alto 0,78m. Detalle ver plano.\n","E1",26,null,{"$f":"+E30*F30","v":0}]
[null,"2.2","Escritorio simple. Categoría 3\nTipo: Estructura con pedestales metálicos de tubos de acero de sección 50x30mm y 1,2mm de espesor y chapa N° 18 plegada, pintura epoxi en polvo aplicado electroestáticamente, tapas molduradas de PVC en los extremos de los tubos. Plano de trabajo y tapa cubre piernas en placa melamínica de baja presión (BP) de 18mm color a definir; cantoneras de 20x45mm molduradas de PVC rígido color negro; un módulo de tres cajones en placas melamínicas BP de 15mm color a definir, tiradores en C de aluminio, guías metálicas telescopicas con bolillas de acero, cerradura de bloqueo central; reguladores metálicos de altura con bases de goma. Sujeción entre placas con tornillos armadores y tuercas cilíndricas embutidas en las placas.\nMedidas: 1,50x0,70m; alto 0,78m. Detalle Ver plano.","E3",80,null,0]
[null,"2.3","Escritorio simple sin cajonera. Categoría 4\nTipo: Estructura con pedestales metálicos de tubos de acero de sección 50x30mm y 1,2mm de espesor y chapa N° 18 plegada, pintura epoxi en polvo aplicado electroestáticamente, tapas molduradas de PVC en los extremos de los tubos. Plano de trabajo y tapa cubre piernas en placa melamínica de baja presión (BP) de 18mm color a definir; cantoneras de 20x45mm molduradas de PVC rígido color negro; reguladores metálicos de altura con bases de goma. Sujeción entre placas con tornillos armadores y tuercas cilíndricas embutidas en las placas.\nMedidas: 1,50x0,70m; alto 0,78m. Detalle Ver plano.","E4",18,null,0]
[null,"2.4","Escritorio con mesa de Apoyo. Categoría 5\nTipo: Estructura en tableros de placa melamínica de baja presión (BP) de 18mm color a definir; cantoneras de 20x45mm molduradas de PVC rígido color negro; plano de trabajo y placa frontal ; planos laterales en placa melaminica de 25mm. color negro mate; reguladores metálicos de altura con bases de goma. Mesa de apoyo conectada por la tapa cubre piernas y Tapa de mesa; módulo de tres cajones en placas melamínicas BP de 15mm, tiradores en C de aluminio, guías metálicas telescopicas con bolillas de acero, cerradura de bloqueo central. Sujeción entre placas con tornillos armadores y tuercas cilíndricas embutidas en las placas.\nMedidas: 1,70x0,70m + 1,00x0,60; alto 0,78m. Detalle ver plano.","E5",1,null,0]
[null,"2.5","Escritorio simple - Categoría 8\nTipo: Estructura con pedestales metálicos de tubos de acero de sección 50x30mm y 1,2mm de espesor y chapa N° 18 plegada, pintura epoxi en polvo aplicado electroestáticamente, tapas molduradas de PVC en los extremos de los tubos. Plano de trabajo y tapa cubre piernas en placa melamínica de baja presión (BP) de 18mm color a definir; cantoneras de 20x45mm molduradas de PVC rígido color negro; un módulo de tres cajones en placas melamínicas BP de 15mm color a definir, tiradores en C de aluminio, guías metálicas telescopicas con bolillas de acero, cerradura de bloqueo central; reguladores metálicos de altura con bases de goma. Sujeción entre placas con tornillos armadores y tuercas cilíndricas embutidas en las placas.\nMedidas: 1,30x0,70m; alto 0,78m. Detalle Ver plano.","E8",209,null,0]
[null,"2.6","Escritorio simple - Categoría 8 con color para Guardería\nTipo: Estructura con pedestales metálicos de tubos de acero de sección 50x30mm y 1,2mm de espesor y chapa N° 18 plegada, pintura epoxi en polvo aplicado electroestáticamente, tapas molduradas de PVC en los extremos de los tubos. Plano de trabajo y tapa cubre piernas en placa melamínica de baja presión (BP) de 18mm color a definir; cantoneras de 20x45mm molduradas de PVC rígido color negro; un módulo de tres cajones en placas melamínicas BP de 15mm color a definir, tiradores en C de aluminio, guías metálicas telescopicas con bolillas de acero, cerradura de bloqueo central; reguladores metálicos de altura con bases de goma. Sujeción entre placas con tornillos armadores y tuercas cilíndricas embutidas en las placas.\nMedidas: 1,30x0,70m; alto 0,78m. Detalle Ver plano.","E8G",4,null,0]
[null,"2.7","Mesa cuadrangular para Restaurante\nTapa supuerior rectangular de PVC inyectado de alta duracion con esquineros reforzados para montaje de patas metalicas. 4 patas de tubos de acero inoxidable o aluminio de alta dureza con refuerzo interior de 5 cm. De diametro terminacion con regatones de poliamida con rotula niveladora.\nMedidas: 0,72x0,72m. y 0,75m de altura. Ver detalles planos. Medidas aproximadas.","M1",5,null,0]
[null,"2.8","Mesa de apoyo simple\nTipo: Estructura con pedestales metálicos de tubos de acero de sección 50x30mm y 1,2mm de espesor y chapa N° 18 plegada, pintura epoxi en polvo aplicado electroestáticamente, tapas molduradas de PVC en los extremos de los tubos. Plano de trabajo y tapa cubre piernas en placa melamínica de baja presión (BP) de 18mm color a definir; cantoneras de 20x45mm molduradas de PVC rígido color negro; reguladores metálicos de altura con bases de goma. \nMedidas: 1,00x0,55m y 0,78m de altura","MA1",70,null,0]
[null,"2.9","Mesa de apoyo simple\nTipo: Estructura con pedestales metálicos de tubos de acero de sección 50x30mm y 1,2mm de espesor y chapa N° 18 plegada, pintura epoxi en polvo aplicado electroestáticamente, tapas molduradas de PVC en los extremos de los tubos. Plano de trabajo y tapa cubre piernas en placa melamínica de baja presión (BP) de 18mm color a definir; cantoneras de 20x45mm molduradas de PVC rígido color negro; reguladores metálicos de altura con bases de goma. \nMedidas: 1,00x0,55m y 0,78m de altura. Con bandeja para UPS\n","MA2",2,null,0]
[null,"2.10","Mesa de apoyo alta fija para pasillos publicos\nMesa alta de melamina color negro de 18mm con tapacanto termofusionado de pvc de 3mm.  Mesada sobreeevada con sujeción de planchuelas metálicas. Regatones de pvc regulables ocultos en las patas. Sujetada a los perfiles de las mamparas. Ver detalle\nMedidas:1,25x0,40x1,10","MAA",20,null,0]
[null,"2.11","Mesa de apoyo imitación trebol\nTipo: Estructura con pedestales metálicos de tubos de acero de sección 50x30mm y 1,2mm de espesor y chapa N° 18 plegada, pintura epoxi en polvo aplicado electroestáticamente, tapas molduradas de PVC en los extremos de los tubos. Plano de trabajo y tapa cubre piernas en placa melamínica de baja presión (BP) de 18mm color a definir e imitación Trébol en despachos de Jueces y sala de Juicios Orales; cantoneras de 20x45mm molduradas de PVC rígido color negro;reguladores metálicos de altura con bases de goma. \nMedidas: 1,20x0,60m; alto 0,78m.","MART",23,null,0]
[null,"2.12","Mesa circular de reuniones.\nTipo: Estructura de un par de pedestales metálicos de doble tubo dispuestos a 45º; tubos de acero de 50x30mm de 1,2mm de espesor, pintura epoxi aplicada electroestáticamente color negro mate; tapa superior en tablero de placa melamínica BP de 18mm color a definir; tapas molduradas de PVC negro en los extremos de los tubos; cantoneras de 20x45mm molduradas de PVC rígido color negro; reguladores metálicos de altura con base de goma.\nDiametro: ø 1,20m","MC 1,20",4,null,0]
[null,"2.13","Mesa circular de reuniones.\nTipo: Estructura de un par de pedestales metálicos de doble tubo dispuestos a 45º; tubos de acero de 50x30mm de 1,2mm de espesor, pintura epoxi aplicada electroestáticamente color negro mate; tapa superior en tablero de placa melamínica BP de 18mm color a definir; tapas molduradas de PVC negro en los extremos de los tubos; cantoneras de 20x45mm molduradas de PVC rígido color negro; reguladores metálicos de altura con base de goma.\nDiametro: ø 1,00m","MC 1,00",3,null,0]
[null,"2.14","Mesa de escenario de melamina\nMódulo de mesa para disertantes de placa de melamina oscura de 18mm. Estructura de tubos metálicos escondida. Zócalo de melamina revestido con chapa de aluminio pañeado de 2mm. Regatones de pvc escondidosde un lado y rueditas de poliester con freno del lado opuesto. Ver detalle\nMedidas: 1,60x0,80m; alto 0,80m.","ME2",3,null,0]
[null,"2.15","Mesa baja de apoyo\nTipo: Estructura metálica tubular, pintura epoxi aplicada electroestaticamente color negro mate; plano superior cristal templado de 10mm; reguladores metálicos de altura con bases de goma.\nMedidas: 0,60x0,60m; alto 0,40m. ","MES",21,null,0]
[null,"2.16","Mesa Hexagonal para guarderia\nTapa superior de placa melaminica MDF de 18mm de espesor con tapa cantos termofusionados. Patas metalicas tubulares continuas de 1\" de diametro con terminacion de pintura epoxica o pintura electroestatica. Terminacio de tubos con zapatas de poliamida. Union entre tapa y tubo accesorios metalicos con tornillos frezados. Separacion en 2 modulos para organizacion continua.\nMedidas: 1,00 m. Distancia mas larga x0,87 m. Distancia mas corta. Por lado 0,50 m. y 0,50m de altura. Ver detalles planos.\n","MGH",9,null,0]
[null,"2.17","Mesa de sala de juicios orales\nEstructura de madera maciza con refuerzos de angulos metalicos, tapa superior de granito natural color negro, perimetro de 4 cm. De espesor, laterales, frente e interior de placa carpintera de 2cm. de espesor madera paraiso, reguladores metalicos de altura con bases de goma fijados a las estructura de madera, zocalos de madera revestido con aluminio anodizado color natural.Medidas: 1,70x0,90m; alto 0,75m. Detalle Ver planos.","ML1",4,null,0]
[null,"2.18","Mesa de defensa y acusadores - Sala de Juicios Orales\nEstructura de madera maciza con refuerzos de angulos metalicos, tapa superior de granito natural color negro, perimetro de 4 cm. De espesor, laterales, frente e interior de placa carpintera de 2cm. de espesor madera paraiso, reguladores metalicos de altura con bases de goma fijados a las estructura de madera, zocalos de madera revestido con aluminio anodizado color natural.\nMedidas:  2,10x0,90m; alto 0,75m.  Detalle Ver planos.\n","ML2",4,null,0]
[null,"2.19","Mesa Principal juicio oral\nEstructura de madera maciza con refuerzos de angulos metalicos, zocalo de madera maciza de 2x4\" revestida con lamina de paraiso, tapa superior de granito natural color negro, perimetro de 4 cm. De espesor, laterales, frente e interior de placa carpintera de 2cm. de espesor madera paraiso, reguladores metalicos de altura con bases de goma fijados a las estructura de madera.\nMedidas:  2,50x0,90m; alto 0,85m.  Detalle Ver plano.","MP2",2,null,0]
[null,"2.20","Mesa de reuniones \nTipo: Estructura de un par de pedestales metálicos de doble tubo dispuestos a 45º; tubos de acero de 50x30mm de 1,2mm de espesor, pintura epoxi aplicada electroestáticamente color negro mate; tapa superior en tablero de placa melamínica BP de 18mm color a definir; tapas molduradas de PVC negro en los extremos de los tubos; cantoneras de 20x45mm molduradas de PVC rígido color negro; placa de refuerzo vertical en tablero de placa melamínica BP de 18mm a definir; reguladores metálicos de altura con base de goma. Refuerzo horizontal de tubo metálico de 50x30mm.\nMedidas:  1,00x2,10m; alto 0,78m.","MR",3,null,0]
[null,3,"MOSTRADORES"]
[null,"3.1","Mostrador de Recepcion PB.\nTipo: Estructura o marco de ajuste en madera maciza de 2”x2”, frente y tapa enchapados en paraiso lustrado claro. Borde macizo 2\"x2\" en paraiso lustrado oscuro. Zócalo de madera maciza revestida con chapa de aluminio pañeada y regatones regulables ocultos en la madera. Estantes de placa enchapada de 25mm en madera paraiso. Puertas de de placa enchapada de 25mm con cerradura a cilindro tipo Papaiz y tiradores (ver detalle T1). Refuerzos para mesada de tubos metálicos de 30x50mm.Terminación madera lustrada semi mate en tono natural. Sobretapa y frente de vidrio templado de 10mm con film ploteado apoyada sobre separadores de aluminio de 1\" y botones de terminacion, separación de sobretapa 5cm. tapa de granito natural. Diseño, según planos. \nMedidas: 4,00x0,80 mts.+ 1,00x0,60 Alturas: 0,80 - 1,10 - 1,20m.","MOS1",1,null,{"$f":"+E51*F51","v":0}]
[null,"3.2","Mostrador de Recepcion\nTipo: Estructura o marco de ajuste en madera maciza de 2”x2”, frente y tapa enchapados en paraiso lustrado claro. Borde macizo 2\"x2\" en paraiso lustrado oscuro. Zócalo de madera maciza revestida con chapa de aluminio pañeada y regatones regulables ocultos en la madera. Estantes de placa enchapada de 25mm en madera paraiso. Puertas de de placa enchapada de 25mm con cerradura a cilindro tipo Papaiz y tiradores (ver detalle T1). Refuerzos para mesada de tubos metálicos de 30x50mm.Terminación madera lustrada semi mate en tono natural. Sobretapa y frente de vidrio templado de 10mm con film ploteado apoyada sobre separadores de aluminio de 1\" y botones de terminacion, separación de sobretapa 5cm. tapa de granito natural. Diseño, según planos. \nMedidas: 2,40x0,80 mts. Alturas: 0,80 - 1,10 - 1,20m.","MOS4 ",1,null,0]
[null,"3.3","Mostrador de Restaurante- caja (1,00x0,60)\nTipo: Estructura frente, tapa y laterales en tableros de placa melamínica BP de 18mm color oscuro; tapacantos con cinta melamínica termofusionada. Cajonera en placas melamínicas BP de 18mm color a definir, guías metálicas telescopicas con bolillas de acero, cerradura a cilindro tipo PAPAIZ. Zócalo de melamina de 18mm. de espesor revestida con chapa de aluminio pañeada de 2mm. Diseño, según planos.\nMedidas:1,00X0,60  (verificar en obra).","MOS5 a",1,null,0]
[null,"3.4","Mostrador de Restaurante- exibidora (1,50x0,60).\nTipo: Estructura frente, tapa y laterales en tableros de placa melamínica BP de 18mm color oscuro; tapacantos con cinta melamínica termofusionada. Frente de para exposicion vidrio templado de 10mm. sellados con silicona o fijadores. Puertas corredizas de cristam templado de 8mm con guias de aluminio anodizado natural. Tapa fondo de granito natural negro. Zócalo de melamina de 18mm. de espesor revestida con chapa de aluminio pañeada de 2mm. Diseño, según planos.\nMedidas:1,50X0,60  (verificar en obra).","MOS5 b",1,null,0]
[null,"3.5","Mostrador recto para atención en juzgados.\nTipo: Estructura en tubos de acero de 50x20mm y 1,2mm de espesor; acabada con pintura epoxi aplicada electroestáticamente; frente, tapa y laterales en tableros de placa melamínica BP de 18mm color a definir; tapacantos con cinta melamínica termofucionada. Cajoneras colgantes en placas melamínicas BP de 18mm color a definir, guías metálicas telescopias con bolillas de acero, cerradura a cilindro tipo PAPAIZ. Sobretapa de granito natural negro espesor 2cm., apoyada sobre 6 separadores de aluminio de 1\" de diámetro, separación de sobretapa sobre mesada 5cm. Zócalo de madera maciza revestida con chapa de aluminio pañeada de 2mm. Vidrio laminado de 6mm con sujetadores cromados en los extremos. Espacio sobre la mesada de granito abierto. Remate superior en placas melamínicas BP de 18mm color a definir. Diseño, según planos. \nMedidas: largo 1,20m y alto 2,15m (verificar en obra).","MRS",62,null,0]
[null,"3.6","Mostrador recto para atención en Juzgado de PAZ\nTipo: Estructura en tubos de acero de 50x20mm y 1,2mm de espesor; acabada con pintura epoxi aplicada electroestáticamente; frente, tapa y laterales en tableros de placa melamínica BP de 18mm color a definir; tapacantos con cinta melamínica termofucionada. Cajoneras colgantes en placas melamínicas BP de 18mm color a definir, guías metálicas telescopias con bolillas de acero, cerradura a cilindro tipo PAPAIZ. Sobretapa de granito natural negro espesor 2cm., apoyada sobre 6 separadores de aluminio de 1\" de diámetro, separación de sobretapa sobre mesada 5cm. Zócalo de madera maciza revestida con chapa de aluminio pañeada de 2mm. Espacio sobre la mesada de granito abierto. Diseño, según planos. \nMedidas: largo 1,05m y alto 2,15m (verificar en obra).","MRS2",3,null,0]
[null,4,"MUEBLES DE COCINA Y KITCHINETTE"]
[null,"4.1","Mueble de kitchinette SS1 hasta Azotea \nMueble de kitchennette, el mueble de melamina se inserta bajo una mesada de granito natural con pollera y zocalo existente. Puertas, cajones y estructura Lateral y fondo de Melamina BP. De 15mm, tapacantos con cinta melamínica termofusionada. Estantes de Melamina BP de 18mm. de espesor. Puertas con Bisagras con cierre automático. Patas circulares de al. anodizado natural regulables de 15cm. de altura. Tapacantos con cinta melaminica. Ver plano. Verificar medidas en Obra.\nMedidas: 1,83x0,60x0,85mts","MK1",5,null,{"$f":"+E58*F58","v":0}]
[null,"4.2","Mueble de kitchinette de guarderia\nMueble de kitchennette, el mueble de melamina se inserta bajo una mesada de granito natural con pollera y zocalo existente. Puertas, cajones y estructura Lateral y fondo de Melamina BP. De 15mm, tapacantos con cinta melamínica termofusionada. Estantes de Melamina BP de 18mm. de espesor. Puertas con Bisagras con cierre automático. Patas circulares de al. anodizado natural regulables de 15cm. de altura. Tapacantos con cinta melaminica. Ver plano. Verificar medidas en Obra.\nMedidas: 1,20x0,60x0,85 mts","MK2",4,null,{"$f":"+E59*F59","v":0}]
[null,"4.3","Mueble de kitchinette\nMueble de kitchennette, el mueble de melamina se inserta bajo una mesada de granito natural con pollera y zocalo existente. Puertas, cajones y estructura Lateral y fondo de Melamina BP. De 15mm, tapacantos con cinta melamínica termofusionada. Estantes de Melamina BP de 18mm. de espesor. Puertas con Bisagras con cierre automático. Patas circulares de al. anodizado natural regulables de 15cm. de altura. Tapacantos con cinta melaminica. Ver plano. Verificar medidas en Obra.\nMedidas: 1,90x0,60x0,85 mts.","MK3",1,null,{"$f":"+E60*F60","v":0}]
[null,"4.4","Mueble de kitchinette  \nMueble de kitchennette, el mueble de melamina se inserta bajo una mesada de granito natural con pollera y zocalo existente. Puertas, cajones y estructura Lateral y fondo de Melamina BP. De 15mm, tapacantos con cinta melamínica termofusionada. Estantes de Melamina BP de 18mm. de espesor. Puertas con Bisagras con cierre automático. Patas circulares de al. anodizado natural regulables de 15cm. de altura. Tapacantos con cinta melaminica. Ver plano. Verificar medidas en Obra.\nMedidas: 2,15x0,60x0,85 + 1,05x0,60x0,85 mts.","MK4",1,null,{"$f":"+E61*F61","v":0}]
[null,5,"ARMARIOS Y ESTANTES"]
[null,"5.1","Armario de música y video\nTipo: Estructura en tableros de placa melamínica BP de 18mm color negro; tapacantos con cinta melamínica termofucionada negra; estantes en placas melamínicas BP de 18mm imitación trébol; cuerpo dividido en un espacio superior y otro inferior,  cerrados con dos puertas batientes en tableros de placa melamínica BP de 18mm color negro mate, bisagras regulables macizas, con resorte de traba al cerrarse y guías de teflón; tiradores en C de Aluminio, pasadores internos cromados y cerradura a cilindro tipo PAPAIZ; reguladores de altura con bases de goma; tablero de fondo con perforaciones para el paso de cables. Sujeción entre placas con tornillos armadores y tuercas cilíndricas embutidas en las placas\nMedidas:  0,90x0,60m; alto 2,10m.","AMV",3,null,{"$f":"+E63*F63","v":0}]
[null,"5.2","Estante métálico\nTipo: Estantería de chapa metálica plegada; con seis bandejas de altura de colocación regulable; veletas de refuerzo en los extremos del estante; pinturas horneadas color: parantes marrón, estantes beige. Ver detalle en planos.\nMedidas: 0,94x0,35m; alto 2,00m.","EM",539,null,0]
[null,"5.3","Gaveta metálica\nTipo: Estructura, cerramientos, puertas y estantes de chapa metálica plegada; con dos (2) puertas y cuatro (4)  bandejas por modulo de altura de colocación regulable; con cuatro (4) patas metálicas; Terminación con pintura EPOXI-POLIÉSTER. Color: Estructura y cerramiento marrón, puertas beige. Cerradura con Bombillo con llave exterior tipo PAPAIZ.\nMedidas: 0,30x0,50m; alto 1,90m. Ver plano.","LOC",12,null,0]
[null,"5.4","Módulo archivador\nModulo Archivador con zócalo en placa melaminica color a definir\nTipo: Estructura en tableros de placa melamínica BP de 18mm color a definir, tapacantos con cinta melamínica termofucionada; un panel separador vertical de 18mm de espesor; dos estantes interiores con guías de colocación en un costado y en el panel separador.  Dos puertas batientes en tableros de placa melamínica BP de 18mm, bisagras regulables macizas, con resorte de traba al cerrarse y guías de teflón; cerradura con cilindro tipo PAPAIZ; tiradores en C de aluminio. Sistema de encastre para apilar en piso y techo de cada módulo. 4 Bolsillos metálicos para rótulos. Sujeción entre placas con tornillos armadores y tuercas cilíndricas embutidas en las placas. zócalo desmontable de placas melaminicas BP de 18mm. reguladores metálicos de altura con bases de goma; (no debe usarse cola ni clavos).\nMedidas:0,75x0,45m; alto 1,05m.","MA",541,null,0]
[null,"5.5","Módulo archivador imitación trebol\nModulo Archivador con zócalo en placa melaminica imitación trébol (despachos jueces)\nTipo: Estructura en tableros de placa melamínica BP de 18mm color a definir e imitación trébol en despachos de Jueces, tapacantos con cinta melamínica termofucionada; un panel separador vertical de 18mm de espesor; dos estantes interiores con guías de colocación en un costado y en el panel separador.  Dos puertas batientes en tableros de placa melamínica BP de 18mm, bisagras regulables macizas, con resorte de traba al cerrarse y guías de teflón; cerradura con cilindro tipo PAPAIZ; tiradores en C de aluminio. Sistema de encastre para apilar en piso y techo de cada módulo. 4 Bolsillos metálicos para rótulos. Sujeción entre placas con tornillos armadores y tuercas cilíndricas embutidas en las placas. zócalo desmontable de placas melaminicas BP de 18mm. reguladores metálicos de altura con bases de goma; (no debe usarse cola ni clavos).\nMedidas:0,75x0,45m; alto 1,05m.","MAT",70,null,0]
[null,"5.6","Mueble de Guarderia en aulas \nTipo: Estructura en tableros de placa melamínica MDP de 18mm y 15mm colores varios, tapacantos con cinta melamínica termofusionada; paneles separadores verticales y horizontales de 18mm de espesor. Puertas batientes en tableros de placa melamínica MDP de 18mm, bisagras regulables macizas, con resorte de traba al cerrarse y guías de teflón; cerradura con cilindro tipo PAPAIZ; tiradores tipo aplique de color según diseño. Sujeción entre placas con tornillos armadores y tuercas cilíndricas embutidas en las placas. Reguladores metálicos de altura con bases de goma; (no debe usarse cola ni clavos). Mecanismo de apertura de puertas tipo TIP-ON\nMedidas:2,90 x2,00 mts","MG",3,null,0]
[null,6,"CORTINAS"]
[null,"6.1","Cortina\nCortina Vertical Corrediza y plegable. Tela antisolar pesada, guías de aluminio y PVC. Inferior pesos metálicos y cadenitas metálicas de unión entre pesos. Ubicación: Oficinas y despachos en gral. Color a definir, presentar muestras.\nMedidas 3,00X1,40 (verificar en obra)","COR 1",50,null,{"$f":"+E70*F70","v":0}]
[null,"6.2","Cortina \nCortina Vertical Corrediza y plegable. Tela antisolar pesada, guías de aluminio y PVC. Inferior pesos metálicos y cadenitas metálicas de unión entre pesos. Ubicación: Despachos y oficinas del bloque B. Color a definir, presentar muestras.\nMedidas 2,20X1,40 (verificar en obra)","COR 2",12,null,0]
[null,"6.3","Cortina\nCortina Vertical Corrediza y plegable. Tela antisolar pesada, guías de aluminio y PVC. Inferior pesos metálicos y cadenitas metálicas de unión entre pesos. Ubicación: Despachos y oficinas. Color a definir, presentar muestras.\nMedidas: 1,20x1,40  (verificar en obra)","COR 3",8,null,0]
[null,"6.4","Cortina\nCortina Vertical Corrediza y plegable. Tela antisolar pesada, guías de aluminio y PVC. Inferior pesos metálicos y cadenitas metálicas de unión entre pesos. Ubicación: Oficina 1er piso. Color a definir, presentar muestras.\nMedidas 3,90x1,40   (verificar en obra)","COR 4",1,null,0]
[null,"6.5","Cortina\nCortina Vertical Corrediza y plegable. Tela antisolar pesada, guías de aluminio y PVC. Inferior pesos metálicos y cadenitas metálicas de unión entre pesos. Ubicación: Oficina en azotea Bloque A. Color a definir, presentar muestras.\nMedidas: 1,00X1,00 (verificar en obra)","COR 5",3,null,0]
[null,"6.6","Cortina\nCortina Vertical Corrediza y plegable. Tela antisolar pesada, guías de aluminio y PVC. Inferior pesos metálicos y cadenitas metálicas de unión entre pesos. Ubicación: Oficina en Bloque B. Color a definir, presentar muestras.\nMedidas: 3,20X1,40  (verificar en obra)","COR 6",1,null,0]
[null,"6.7","Cortina\nCortina Vertical Corrediza y plegable. Tela antisolar pesada, guías de aluminio y PVC. Inferior pesos metálicos y cadenitas metálicas de unión entre pesos. Ubicación: Oficinas en azotea. Color a definir, presentar muestras.\nMedidas:1,40X1,40  (verificar en obra)","COR 7",4,null,0]
[null,"6.8","Cortina\nCortina Vertical Corrediza y plegable. Tela antisolar pesada, guías de aluminio y PVC. Inferior pesos metálicos y cadenitas metálicas de unión entre pesos. Ubicación: Azotea bloque C- Color a definir, presentar muestras.\nMedidas: 1,10 X1,00  (verificar en obra)","COR 8",4,null,0]
[null,"6.9","Cortina\nCortina Vertical Corrediza y plegable. Tela antisolar pesada, guías de aluminio y PVC. Inferior pesos metálicos y cadenitas metálicas de unión entre pesos. Ubicación: Enfermeria de guardería. Color a definir, presentar muestras.\nMedidas: 2,20x0,80  (verificar en obra)","COR 9",4,null,0]
[null,"6.10","Cortina\nCortina Vertical Corrediza y plegable. Tela antisolar pesada, guías de aluminio y PVC. Inferior pesos metálicos y cadenitas metálicas de unión entre pesos. Ubicación:Recepción de guardería. Color a definir, presentar muestras.\nMedidas: 2,90x2,30  (verificar en obra)","COR 10",1,null,0]
[null,"6.11","Cortina\nCortina Vertical Corrediza y plegable. Tela antisolar pesada, guías de aluminio y PVC. Inferior pesos metálicos y cadenitas metálicas de unión entre pesos. Ubicación: Oficina Bloque B. Color a definir, presentar muestras.\nMedidas: 3,20 X1,40  (verificar en obra)","COR 11",1,null,0]
[null,7,"PORTAPLANTERA Y BASUREROS"]
[null,"7.1","Papelera baja de Melamina\nEstructura en placas de melamina BP de 18mm color a definir, tapacantos con cinta melamínica termofusionada. Cantonera en PVC negro de 20x40mm. En el interior posee una papelera plástica de base cuadrangular del tipo P3. Ver detalle en planos.","P2",64,null,{"$f":"+E82*F82","v":0}]
[null,"7.2","Papelera plástica de planta cuadrangular med. Aprox de 0,25x0,25x0,25 capacidad de 15 litros ","P3",287,null,0]
[null,"7.3","Papelera plástica de planta circular con capacidad de 100 lts. Con tapa vaivén","P4",42,null,0]
[null,"7.4","Papelera plástica de planta circular. Sin perforaciones. Capacidad de 50 lts.","P5",2,null,0]
[null,"7.5","Papelera en aulas de Guardería. Papelera ecológica con 3 compartimentos interiores independientes para cada residuo. Cuerpo, tapa y cubos interiores fabricados en Polipropileno de alta calidad. \nTapa accionable por pedal fabricado en acero cromado. Capacidad total 50lts.\n","P6",3,null,0]
[null,"7.6","Porta plantera\nEstructura en placa melamínica BP de 18mm color a definir; tapacantos con cinta melamínica termofucionada. Cantonera de PVC negro de 20x40mm. Plantera de cerámica cilíndrica de color natural diámetro 35cm., base para plantera de PVC diámetro 40cm. color negro, plantas ornamentales de 1,50m. de altura como mínimo.  Ver detalle en planos","PPL",43,null,0]
[null,"7.7","Papelera baja de imitación Trébol.\nEstructura en placas de melamina BP de 18mm imitación Trébol, tapacantos con cinta melamínica termofucionada. Cantonera en PVC negro de 20x40mm. En el interior posee una papelera plástica de base cuadrangular. Ver detalle en planos.","PT",28,null,0]
[null,8,"EQUIPAMIENTOS VARIOS"]
[null,"8.1","Atril\nAtril de madera de paraíso multilaminada con terminación de lustre natural. Rebaje 1cm la en tapa superior, escudo de acero inoxidable satinado pegado a la parte frontal. Estructura de tubos metálicos de 40x40 y contrapeso inferior de placa de hierro de 1cm.\nMedidas: 0,35x0,55x1,20","A",1,null,{"$f":"+E90*F90","v":0}]
[null,"8.2","Almohadon\nRelleno con gramos de espuma de poliestireno expandido, tapizado en simil cuero color a definir, con cierre de 30cm. \nMedidas 80x80cm. Altura 20cm.","AL",2,null,0]
[null,"8.3","Mástil para bandera\nMástil con bandera. Base de madera maciza de paraiso con relieve, mástil de paraiso de 5cm. De diámetro. Con provisión de bandera del Paraguay con escudos bordados en Tejido de Ñanduti. Terminación Lustrada con protección de Laca poliuretanica aplicada con soplete. \nMedidas: Base 0,40x0,40m. y 2,00m. de altura. Ver detalle Plano","BAN",3,null,0]
[null,"8.4","Barandilla Estructura metalica y madera (sala de juicios orales)\nAlto 0,90m; en módulos desmontables con parantes de tubos metálicos de 60x40mm en los extremos y largueros de tubos metálicos de 20x40mm; paneles de placa melamínica color negro mate; pasamanos moldurado de 50x80mm de paraiso sujeto a los largueros; acabado del paraiso con lustre oscuro. Incluye doble puerta vaivén de 0,80x0,90m con traba a bolilla metálica con resorte. Ver detalle Plano.\nMedida 6,50m de largo por 0,90m. De altura","BAR",2,null,0]
[null,"8.5","Borde de protección perimetral de madera. Revestido con placas de paraiso de 8mm. Acabado lustre natural'. Medidas: largo 11,5 m y ancho 30cm. Altura desde el piso 0,55m. Ubicación: Salas de juicios orales sector publico. Verificar Medidas en Obra. ","BRP",2,null,0]
[null,"8.6","Camilla para inspecciones médicas\nEstructura metálica de caños Cromados de 1\" de diámetro. Superior estructura de madera multilaminada de 10mm. acolchada con espuma poliuretanica de 5cm. de espesor, tapizados integralmente en símil cuero color negro mate.\nMedidas: largo 1.90m., ancho 0.60m. Altura aproximada 0.75m.","CAM",3,null,0]
[null,"8.7","Cama litera \nCamas de 2,00mx0,90m. De 2 pisos de estrutura metálica de tubos de acero reforzado de 50mm y pintados con pintura epoxi color a definir. Parrilla de listones de madera de pino tratada. Incluye 2 colchones de una plaza de espuma de alta densidad espesor 15cm. y 2 Almohadas de espuma de 10cm. de espesor.\nMedidas: 2,00x0,90.","CAM L",1,null,0]
[null,"8.8","Desfibrilador\nDesfibrilador externo semiautomático, ligero y de fácil portabilidad, mayor agilidad de respuesta ante una víctima de muerte súbita o parada cardiorespiratoria. Duración de la batería de 5 años. Peso aproximado de 1,5 kgs. Provisto de instrucciones de voz en español que guiará al usuario durante todo el proceso de desfibrilación de una forma sencilla y clara, adaptándose al ritmo de uso de cada persona, de tal manera que realizará todos los pasos, y si una instrucción no se ha realizado, el desfibrilador lo detectará e invitará a realizarla, recordándole la necesidad de contactar con los servicios de emergencias. El dispositivo realizara automáticamente revisiones a su funcionamiento, garantizando su óptimo estado en el momento que es requerido. Incluye caja de montaje por pared. Cada equipo debera contar con 2 juegos de almohadillas para adultos y 1 juego para niños. Tambien se debera proveer 2 juegos de almohadillas para entrenamiento.","DES",1,null,0]
[null,"8.9","Escalera doble\nEscalera doble en caños cromados de 1\" de diámetro y placas de multilaminada de 10mm revestidas en goma antideslizante\n","ESC",3,null,0]
[null,"8.10","Cambiador de pañales\nPañalera horizontal para cambio de pañales, fijados a la pared en los baños de minusvalidos, Material de fabricacion polietileno de alto impacto, resistente a la proliferacion de hongos y bacterias, soportes para fijacion en acero inoxidable, ganchos para colgar la pañalera o el bolso.\nMedidas aprox. 85cm x 55 cm. y 10cm de profundidad","PAÑ",4,null,0]
[null,"8.11","Perchita individual de madera pintada con pintura sintética color a definir.","PER G",15,null,0]
[null,"8.12","Pizarrón de Guardería de madera fenolica\nPizarrón con forma de casita, de placa de madera fenólica de 10mm con bastidor de madera de pino tratada con soporte para borrador y marcadores. Terminación de pintura negra para pizarras, manos necesarias. Ver detalle\nMedidas: (1,60x1,50)","PIZ G",3,null,0]
[null,"8.13","Tarima en Sala de Juicios Orales\nEstructura de madera, Tirantes de lapacho de 2x6\" cada 50cm., 10cm de zócalo de madera maciza revestido con plancha de aluminio de 2mm; laterales de placa melamínica color negro mate; canto superior 40x40mm de lapacho oscuro; piso de lapacho lustrado de 4\" Machimbrado sobre placas fenólicas de 16mm.\n Medidas 2,30x3,40m y 0,20m de altura. ","TAR ",2,null,0]
[null,9,"REVESTIMIENTOS"]
[null,"9.1","Revestimiento de Recepción de Planta baja- Superficie:18,2 m2 - Dimensiones: 6,33x2,60\nCompuesto por paneles de placa carpintera de madera de paraiso lustrada con rebaje de melamina color gris chumbo, fijado a estructura de madera de listones de 2x2\". Ver detalle en planos.","RPB",1,null,{"$f":"+E104*F104","v":0}]
[null,"9.2","Revestido con placas de paraiso de 12mm sobre estructura de listones de paraiso de 40x40mm. Acabado lustre natural. Buñas de 1cm según detalle. Cantoneras de paraiso macizo lustrado. Ubicación: Salas de Juicios Orales 1,2,3 Planta Baja. Verificar Medidas en Obra. Ver detalle en planos. Superficie 20m2  - Dimensiones:7,15x2,80","RSJ",2,null,{"$f":"+E105*F105","v":0}]
[null,"9.3","Revestimiento del salón de usos múltiples- Superficie: 35 m2  - Dimensiones: 12,60x2,70 altura promedio.\nCompuesto por paneles de placa carpintera de madera de paraiso lustrada con rebaje de melamina color gris chumbo, fijado a estructura de madera de listones de 2x2\". Ver detalle en planos.","RSUM",1,null,{"$f":"+E106*F106","v":0}]
[null,10,"EQUIPAMIENTOS EXTERIORES, JUEGOS INFANTILES Y EJERCITADORES"]
[null,"10.1","Banco metalico\nEstructura perimetral de tubo de acero de 40mm de diametro con asiento y respaldo de acero perforado de 2mm de grosor y agujeros de 7mm de diametro. Acabado zincado electrolitico por inmersion y pintura de poliester en polvo color gris. Anclaje con tornillos galvanizados de fijacion al hormigon de base. Medidas 2,00m de largo por 0,75m. de ancho. aproximadas. Ver detalle en plano EXT 02","Banco",14,null,{"$f":"+E108*F108","v":0}]
[null,"10.2","Basurero metalico\nEstructura de soporte planchuelas y caños galvanizados, contenedor circular en chapa metalica acero galvanizado de 2mm de espesor. Tratamiento imprimacion epoxica y pintura de poliester en polvo negro. Anclaje con pernos de fijacion al suelo. Sistema de giro con pernos metalicos de alta dureza antivandalismo. Med. 0,88m de altura. Diametro cesto 37cm. Ver detalle en plano EXT 02","BM",19,null,0]
[null,"10.3","Basurero metalico con cenicero\nEstructura de soporte planchuelas y caños galvanizados, contenedor circular en chapa metalica acero galvanizado de 2mm de espesor. Tratamiento imprimacion epoxica y pintura de poliester en polvo negro. Anclaje con pernos de fijacion al suelo. Sistema de giro con pernos metalicos de alta dureza antivandalismo. Med. 0,88m de altura. Diametro cesto 37cm. Cenicero metalico circular diametro 8cm. y 27 cm. de altura fijado al parante del basurero. Ver detalle en plano EXT 02","BMC",7,null,0]
[null,"10.4","Contenedor para basuras con tapa.\nContenedor plastico HDPE, polietileno de Alta densidad, alta dureza con resistencia a los impactos, dificil rotura, resistente al cultivo de bacterias, hongos y liquenes. Soporte metalico para utilizacion de equipos recolectores. Ruedas con freno de 10cm. de diametro.Fabricado bajo normas EN840, ISO 9001 e ISO 14000.  Med. 1,38m X 1,06m. altura 1,28m. Capacidad 1.100 litros.","CM",3,null,0]
[null,"10.5","Tope de ruedas para estacionamientos.\nTope para ruedas de vehiculos en cada espacio para estacionamiento. Fabricado en caucho reutilizado triturado reforzado con poliuretano y con bandas reflectivas adhesivas en nichos preparados en el molde del tope. Interior macizo,  relleno con caucho reciclado sin espacios huecos, Fijacion mediante tarugos metalicos y tornillos de por lo menos 4 pulgadas. Med. largo 1,80m. ancho 15cm. y altura 10 cm.","TOP",94,null,0]
[null,"10.6","Maceta alta 1\nPortamacetas rectangular de chapa metálica doblada de 2mm de espesor. Estructura de tubos metálicos de  40x40mm y planchuelas inferiores para su fijación al suelo con tarugos metálicos. Base de metal desplegado con acabado epoxi. Acabado con 6 manos de pintura automotriz color grafito oscuro. Incluye macetas y bandejas de PVC, tierra abonada y plantas ornamentales: tradescantia zebrina. Medidas:2,20x0,35x1,00m","MA 1",4,null,0]
[null,"10.7","Maceta baja\nEstructura de tubos metálicos de  40x40mm y planchuelas inferiores para su fijación al suelo con tarugos metálicos. Base de metal desplegado con acabado epoxi. Acabado con 6 manos de pintura automotriz color grafito oscuro. Incluye macetas y bandejas de PVC, tierra abonada y plantas ornamentales: tradescantia spathacea.Medidas:0,80x0,80x0,55m","MB",2,null,0]
[null,"10.8","Piso de caucho EPDM\nFormato: losetas de 0,50X0,50 en colores diversos.\nEspesor: 25 mm\nPeso aprox.: Hasta 31 kg/m2\nTolerancia: ± 2 mm de espesor y 1% de variación dimensional\nConsiderar como base existente piso de h°a° llaneado.\nUbicación: parque de juegos de plaza y parque de juegos de guardería. Colores a definir según muestras y diseño segun detalle. Considerar desperdicio por cortes.\nMedidas en m2.","Piso de caucho",506,null,0]
[null,"10.9","Andamios modulares.\nConjunto de 12 modulos de andamios, cada modulos contada con una escalera de angulos metalicos, metal desplegado en los escalones y barandillas de tubos . Crucetas de caños con sistemas de fijacion de trabas, no con tornillos. Encastre entre andamios macho/hembra. Tres plataformas metalicas perforadas y reforzadas. 4 ruedas reforzadas con rodamiento de goma y frenos. Terminacion pintura tipo automotriz de alta resistencia.","Andamios",1,null,0]
[null,"10.10","Casa torre con conector, toboganes y hamacas\nEstructura con postes metalicos de hierro galvanizado en caliente y demas estructuras de acero inoxidable. Espesor minimo de los componentes estructurales metalicos galvanizados es de 3mm. Partes plasticas LDPE, polietileno de Baja densidad, capacidad elastica y ligera, alta resistencia a los impactos, dificil rotura, uniformidad de colores en cantos y laterales, acabados continuos y homogeneos, resistente al cultivo de bacterias, hongos y liquenes. Piezas metalicas Acero S-235 galvanizado y lacado y Acero inox AISI-304. Tornillos armadores de acero inoxidable y galvanizados.  Pintura lacado en polvo con resina de poliester, endurecedores y pigmentos excentos de plomo y alta resistencia a la meteorizacion. Escaleras de subida a niveles, 3 toboganes a distintos niveles. Ver diseño orientativo en plano EXT 02","Torre con hamacas",2,null,0]
[null,"10.11","Sube y Baja\nEstructura con resortes metalicos de hierro galvanizado en caliente. Partes plasticas HDPE, polietileno de Alta densidad, alta dureza con resistencia a los impactos, dificil rotura, resistente al cultivo de bacterias, hongos y liquenes. Piezas metalicas Acero S-235 galvanizado y lacado. Tornillos galvanizados.  Pintura lacado en polvo con resina de poliester, endurecedores y pigmentos excentos de plomo y alta resistencia a la meteorizacion. Ver diseño orientativo en plano EXT 02","Sube y Baja",5,null,0]
[null,"10.12","Balancin\nEstructura con resortes metalicos de hierro galvanizado en caliente. Partes plasticas HDPE, polietileno de Alta densidad, alta dureza con resistencia a los impactos, dificil rotura, resistente al cultivo de bacterias, hongos y liquenes. Piezas metalicas Acero S-235 galvanizado y lacado. Tornillos galvanizados.  Pintura lacado en polvo con resina de poliester, endurecedores y pigmentos excentos de plomo y alta resistencia a la meteorizacion. Ver diseño orientativo en plano EXT 02","Balancin",12,null,0]
[null,"10.13","Hamaca inclusiva\nUtilización de diferentes compuestos metálicos muy resistentes a la corrosión, al desgaste y al vandalismo como son el\nAcero Inoxidable, Aluminio Anodizado, Hierro con Zincado Electrolítico y lacado en polvo y Acero Galvanizado en caliente.\nPiezas metálicas: Acero S-235 galvanizado y lacado.\nTornillería: Acero inox AISI-304.\nPintura: 1 mano de lacado en polvo constituido por mezcla de resinas poliéster, endurecedores y pigmentos, exento de plomo.\nCadenas: Eslabones rectos de acero inoxidable AISI 316.","Hamaca inclusiva",1,null,0]
[null,"10.14","Xilófono\nMarco principal de cañería de acero de ø 3,5” con espesor de 2.4mm que cumple normas ASTM.\nCampanas confeccionadas en Aluminio tipo 6063. Pernería de acero inoxidable. Pintura electrostática poliéster de alta duración sin plomo de 90 +/- 30 μ de espesor. \nSegún normas ASTM F1487 y EN1176. Medidas: 0,40 x 1,44 x 1,87 m","Xilófono",2,null,0]
[null,"10.15","Ejercitador de cintura\nEstructura portante de acero galvanizado en caliente, tubos, planchuelas, soportes de espesor minimo de 3mm. Componentes de los equipos para la movilidad varillas macizas de acero inoxidable con retenes plasticos de alta prestacion. Terminacion 1 mano de lacado en polvo compuesto por mezcla de resinas de poliester, endurecedores y pigmentos excentos de plomo y con alta resistencia. Piezas plasticas de polietileno HDPE de alta dureza. Tornillos de acero inoxidable. Medidas ver Plano EXT 02.","Cintura",1,null,0]
[null,"10.16","Andador Eliptico\nEstructura portante de acero galvanizado en caliente, tubos, planchuelas, soportes de espesor minimo de 3mm. Componentes de los equipos para la movilidad varillas macizas de acero inoxidable con retenes plasticos de alta prestacion. Terminacion 1 mano de lacado en polvo compuesto por mezcla de resinas de poliester, endurecedores y pigmentos excentos de plomo y con alta resistencia. Piezas plasticas de polietileno HDPE de alta dureza. Tornillos de acero inoxidable. Medidas ver Plano EXT 02.","Andador",1,null,0]
[null,"10.17","Ejercitador tipo Esqui\nEstructura portante de acero galvanizado en caliente, tubos, planchuelas, soportes de espesor minimo de 3mm. Componentes de los equipos para la movilidad varillas macizas de acero inoxidable con retenes plasticos de alta prestacion. Terminacion 1 mano de lacado en polvo compuesto por mezcla de resinas de poliester, endurecedores y pigmentos excentos de plomo y con alta resistencia. Piezas plasticas de polietileno HDPE de alta dureza. Tornillos de acero inoxidable. Medidas ver Plano EXT 02.","Esqui",1,null,0]
[null,"10.18","Ejercitador de Dorsales\nEstructura portante de acero galvanizado en caliente, tubos, planchuelas, soportes de espesor minimo de 3mm. Componentes de los equipos para la movilidad varillas macizas de acero inoxidable con retenes plasticos de alta prestacion. Terminacion 1 mano de lacado en polvo compuesto por mezcla de resinas de poliester, endurecedores y pigmentos excentos de plomo y con alta resistencia. Piezas plasticas de polietileno HDPE de alta dureza. Tornillos de acero inoxidable. Medidas ver Plano EXT 02.","Dorsales",1,null,0]
[null,"10.19","Ejercitador de Pectorales\nEstructura portante de acero galvanizado en caliente, tubos, planchuelas, soportes de espesor minimo de 3mm. Componentes de los equipos para la movilidad varillas macizas de acero inoxidable con retenes plasticos de alta prestacion. Terminacion 1 mano de lacado en polvo compuesto por mezcla de resinas de poliester, endurecedores y pigmentos excentos de plomo y con alta resistencia. Piezas plasticas de polietileno HDPE de alta dureza. Tornillos de acero inoxidable. Medidas ver Plano EXT 02.","Pectorales",1,null,0]
[null,11,"GENERAL"]
[null,"11.1","Elaboracion de inventario en base a la descripcion de las especificaciones tecnicas. \nSe considera como global para todo el equipamiento a proveer.","gl.",1,null,{"$f":"+E128*F128","v":0}]
[null,"11.2","Deposito de los equipamientos desarmados o armados, sillas armadas o desarmadas. Incluye guardia 24 horas y seguro contra todo riesgo.","mes",6,null,{"$f":"+E129*F129","v":0}]
[null,"11.3","Montaje de los equipamientos interiores y exteriores que debera ser realizado en un plazo no mayor a dos meses antes de la recepcion provisoria del lote.","gl.",1,null,{"$f":"+E130*F130","v":0}]
[null,null,"TOTAL GENERAL IVA INCLUIDO",null,null,null,{"$f":"SUM(G14:G130)","v":0}]

{"sheet":"Láminas 1","index":3,"n_rows":27,"n_cols":5,"rows_kept":27,"cut":false,"hidden":false,"merged":[[2,1,2,2],[2,3,2,4],[24,1,24,4],[1,1,1,2],[26,1,26,4]]}
[]
[null,"LOTE 1- FERNANDO DE LA MORA"]
[null,"LISTADO DE LAMINAS",null,"FECHA:   Julio 2025"]
[null,"ITEM","DESCRIPICION","NOMBRE ","ESCALA"]
[null,null,null,"DEL ARCHIVO"]
[null," MOBILIARIO INTERIOR"]
[null,1,"Planta Subsuelo 2 y Subsuelo 1","MOB01","1/100"]
[null,2,"Planta Baja","MOB02","1/100"]
[null,3,"Planta 1° Piso","MOB03","1/100"]
[null,4,"Planta 2° Piso y 3° Piso","MOB04","1/100"]
[null,5,"Planta 4° Piso y 5° Piso","MOB05","1/100"]
[null,6,"Planta 6° Piso y Azotea","MOB06","1/100"]
[null,7,"Detalles de Muebles","MOB07",0.05]
[null,8,"Detalles de Muebles","MOB08",0.05]
[null,9,"Detalles de Muebles","MOB09",0.05]
[null,10,"Detalles de Muebles","MOB10",0.05]
[null,11,"Detalles de Muebles","MOB11","varias"]
[null,12,"Detalles de Muebles","MOB12","varias"]
[null," MOBILIARIO EXTERIOR"]
[null,1,"Planta Subsuelo 2","EXT01","1/100"]
[null,2,"Planta Subsuelo 1","EXT02","1/100"]
[null,3,"Planta Baja","EXT03","1/100"]
[null,4,"Detalles de juegos infantiles y ejercitadores","EXT04","varias"]
[]
[null,"* Los planos se encuentran en formato pdf de adobe acrobat, para plotear en hoja tamaño 800x1100mm. En el programa de impresión en Escala de pagina colocar en ninguno."]
[null,"* Los planos seran entregados en digital e independiente al pliego."]
[null,"* Prestar atención a los detalles y especificaciones de los items de los distintos lotes porque  pueden diferir teniendo el mismo código."]

{"sheet":"Láminas 2","index":4,"n_rows":25,"n_cols":5,"rows_kept":25,"cut":false,"hidden":false,"merged":[[1,1,1,2],[2,1,2,2],[2,3,2,4],[22,1,22,4],[24,1,24,4]]}
[]
[null,"LOTE 2- FILADELFIA"]
[null,"LISTADO DE LAMINAS",null,"FECHA:   Julio 2025"]
[null,"ITEM","DESCRIPICION","NOMBRE ","ESCALA"]
[null,null,null,"DEL ARCHIVO"]
[null," MOBILIARIO INTERIOR"]
[null,1,"Planta Baja","MOB01","1/100"]
[null,2,"Primer Piso","MOB02","1/100"]
[null,3,"Segundo Piso","MOB03","1/100"]
[null,4,"Tercer Piso","MOB04","1/100"]
[null,5,"Azotea","MOB05","1/100"]
[null,6,"Detalles de Muebles","MOB06",0.05]
[null,7,"Detalles de Muebles","MOB07",0.05]
[null,8,"Detalles de Muebles","MOB08",0.05]
[null,9,"Detalles de Muebles","MOB09",0.05]
[null,10,"Detalles de Muebles","MOB10","varias"]
[null,11,"Detalles de revestimientos ","MOB11","varias"]
[null," MOBILIARIO EXTERIOR"]
[null,1,"Planta Baja","EXT01","1/100"]
[null,2,"Planta Baja","EXT02","1/100"]
[null,3,"Detalles de juegos infantiles y ejercitadores","EXT03","varias"]
[]
[null,"* Los planos se encuentran en formato pdf de adobe acrobat, para plotear en hoja tamaño 800x1100mm. En el programa de impresión en Escala de pagina colocar en ninguno."]
[null,"* Los planos seran entregados en digital e independiente al pliego."]
[null,"* Prestar atención a los detalles y especificaciones de los items de los distintos lotes porque  pueden diferir teniendo el mismo código."]